Workbook

Sheet Calorie Amoritization
B1: CALORIE AMORTIZATION SCHEDULE
C2: =IFERROR(CONCATENATE("ONLY ",DATEDIF(StartDate,TargetDate,"m")," MONTHS AND ", DATEDIF(StartDate,TargetDate,"md"),DayNo),"") -> ONLY 3 MONTHS AND 17 DAYS | I2: =IF(WeightGoal="Decrease","It's not recommended that you decrease your calorie intake by more than 1000 calories below your daily calorie needs or consume less than " & IF(Gender="Female","1200 calories per day.","1800 calories per day."),"") -> It's not recommended that you decrease your calorie intake by more than 1000 calories below your daily calorie needs or consume less than 1200 calories per day.
C3: =IF(WeightGoal="Maintain",""," UNTIL YOU REACH YOUR GOAL!") -> UNTIL YOU REACH YOUR GOAL! | I3: =IF(WeightGoal="Maintain","",CONCATENATE("Goal target date is based on the recommended average weight ",IF(WeightGoal="Decrease","loss ","gain "),"of ",IF(UnitOfMeasure="Imperial","1 lb",".45 k")," per week.")) -> Goal target date is based on the recommended average weight loss of 1 lb per week.
C4: ACTIVITY LEVEL | I4: MEASUREMENT SYSTEM | K4: CURRENT WEIGHT | M4: AGE
C5: MODERATE ACTIVITY | F5: =VLOOKUP(Level,ExerciseTypes[],2,FALSE) -> EXERCISE 3-5 DAYS/WEEK | I5: IMPERIAL | K5: 150.0 | M5: 34
C6: I WANT MY WEIGHT TO | I6: =IF(Standard,"HEIGHT IN FT","HEIGHT IN M") -> HEIGHT IN FT | J6: =IF(Standard,"INCHES","CENTIMETERS") -> INCHES | K6: GOAL WEIGHT | M6: GENDER
C7: DECREASE | I7: 5 | J7: 5 | K7: 135.0 | M7: FEMALE
C8: INITIAL DAILY CALORIE NEEDS | F8: INITIAL DAILY CALORIE INTAKE | I8: =IF(WeightGoal="Increase","EXCESS CALORIES NEEDED","CALORIES TO BURN") -> CALORIES TO BURN | K8: GOAL START DATE | M8: GOAL TARGET DATE
C9: =IF(AllComplete,BMR*ActivityFactor,"") -> 2252 | F9: =IF(AllComplete,BMR*ActivityFactor+IF(WeightGoal="Maintain",0,IF(WeightGoal="Decrease",-500,IF(WeightGoal="Increase",500))),"") -> 1752 | I9: =IF(WeightGoal="Maintain","",(WeightToLoseGain)*IF(Standard,1,2.2)*3500) -> 52500 | K9: =TODAY()-5 -> 2013-02-20 | M9: =IF(WeightGoal="Maintain","",IF(AND(AllComplete,C13<>""),MAX(C12:C999),"Target date cannot be less than start date. Please check your entries.")) -> 2013-06-06
C11: DATE | D11: WEEK | E11: DAY | F11: WEIGHT | G11: BMR | H11: CAL CONSUMED | I11: CAL BURNED | J11: =IF(WeightGoal="Increase", "EXTRA CAL","CAL DEFICIT") -> CAL DEFICIT | K11: CAL REMAINING | L11: =IF(UnitOfMeasure="Imperial","LBS REMAINING","KGS REMAINING") -> LBS REMAINING | M11: =IF(WeightGoal="Increase","GAIN","LOSS") -> LOSS | N11: % OF GOAL
C12: =IF(Maintain,"",StartDate) -> 2013-02-20 | D12: =IF(Maintain,"",1) -> 1 | E12: =IF(AND(ISNUMBER(K12),K12>0),1,"") -> 1 | F12: =IF(Maintain,"",Weight) -> 150.0 | G12: =IF(Maintain,"",IF(F12>0,RunningBMR,"")) -> 1453 | H12: =IF(Maintain,"",InitCalIntake) -> 1752 | I12: =IFERROR(G12*(ActivityFactor),"") -> 2252 | J12: =IFERROR(IF(WeightGoal="Increase",H12-I12,I12-H12),"") -> 500 | K12: =I9 -> 52500 | L12: =IFERROR(IF(Standard,K12/CalsPerPound,K12/CalsPerPound/2.2),"") -> 15.0 | M12: =IFERROR(WeightToLoseGain-L12,"") -> 0.00 | N12: =IF(Maintain,"",0%) -> 0%
C13: =IFERROR(IF(L12>0,C12+1,""),"") -> 2013-02-21 | D13: =IFERROR(IF(E13<>"",IF(MOD(E13,7)=1,(E12/7)+1,""),""),"") ->  | E13: =IFERROR(IF(L12>0,E12+1,""),"") -> 2 | F13: =IFERROR(IF($E13<>"",F12-(J12/CalsPerPound),""),"") -> 149.9 | G13: =IFERROR(RunningBMR,"") -> 1453 | H13: =IFERROR(IF(L12>0,G12*ActivityFactor+IF(WeightGoal="Maintain",0,IF(WeightGoal="Decrease",-500,IF(WeightGoal="Increase",500))),""),"") -> 1752 | I13: =IFERROR(G13*(ActivityFactor),"") -> 2251 | J13: =IFERROR(IF(WeightGoal="Increase",H13-I13,I13-H13),"") -> 499 | K13: =IFERROR(K12-J13,"") -> 52001 | L13: =IFERROR(IF(Standard,K13/CalsPerPound,K13/CalsPerPound/2.2),"") -> 14.9 | M13: =IFERROR(WeightToLoseGain-L13,"") -> 0.14 | N13: =IFERROR(IF(C12<>"",M13/(WeightToLoseGain),""),"") -> 1%
C14: 2013-02-22 | D14: =IFERROR(IF(E14<>"",IF(MOD(E14,7)=1,(E13/7)+1,""),""),"") ->  | E14: 3 | F14: 149.7 | G14: =IFERROR(RunningBMR,"") -> 1452 | H14: =IFERROR(IF(L13>0,G13*ActivityFactor+IF(WeightGoal="Maintain",0,IF(WeightGoal="Decrease",-500,IF(WeightGoal="Increase",500))),""),"") -> 1751 | I14: =IFERROR(G14*(ActivityFactor),"") -> 2251 | J14: =IFERROR(IF(WeightGoal="Increase",H14-I14,I14-H14),"") -> 499 | K14: =IFERROR(K13-J14,"") -> 51502 | L14: =IFERROR(IF(Standard,K14/CalsPerPound,K14/CalsPerPound/2.2),"") -> 14.7 | M14: =IFERROR(WeightToLoseGain-L14,"") -> 0.29 | N14: =IFERROR(IF(C13<>"",M14/(WeightToLoseGain),""),"") -> 2%
C15: 2013-02-23 | E15: 4 | F15: 149.6 | G15: =IFERROR(RunningBMR,"") -> 1451 | H15: =IFERROR(IF(L14>0,G14*ActivityFactor+IF(WeightGoal="Maintain",0,IF(WeightGoal="Decrease",-500,IF(WeightGoal="Increase",500))),""),"") -> 1751 | I15: =IFERROR(G15*(ActivityFactor),"") -> 2250 | J15: =IFERROR(IF(WeightGoal="Increase",H15-I15,I15-H15),"") -> 499 | K15: 51003 | L15: =IFERROR(IF(Standard,K15/CalsPerPound,K15/CalsPerPound/2.2),"") -> 14.6 | M15: =IFERROR(WeightToLoseGain-L15,"") -> 0.43 | N15: =IFERROR(IF(C14<>"",M15/(WeightToLoseGain),""),"") -> 3%
C16: 2013-02-24 | E16: 5 | F16: 149.4 | G16: =IFERROR(RunningBMR,"") -> 1451 | H16: =IFERROR(IF(L15>0,G15*ActivityFactor+IF(WeightGoal="Maintain",0,IF(WeightGoal="Decrease",-500,IF(WeightGoal="Increase",500))),""),"") -> 1750 | I16: =IFERROR(G16*(ActivityFactor),"") -> 2249 | J16: =IFERROR(IF(WeightGoal="Increase",H16-I16,I16-H16),"") -> 499 | K16: 50504 | L16: =IFERROR(IF(Standard,K16/CalsPerPound,K16/CalsPerPound/2.2),"") -> 14.4 | M16: =IFERROR(WeightToLoseGain-L16,"") -> 0.57 | N16: =IFERROR(IF(C15<>"",M16/(WeightToLoseGain),""),"") -> 4%
C17: 2013-02-25 | E17: 6 | F17: 149.3 | G17: =IFERROR(RunningBMR,"") -> 1450 | H17: =IFERROR(IF(L16>0,G16*ActivityFactor+IF(WeightGoal="Maintain",0,IF(WeightGoal="Decrease",-500,IF(WeightGoal="Increase",500))),""),"") -> 1749 | I17: =IFERROR(G17*(ActivityFactor),"") -> 2248 | J17: =IFERROR(IF(WeightGoal="Increase",H17-I17,I17-H17),"") -> 499 | K17: 50005 | L17: =IFERROR(IF(Standard,K17/CalsPerPound,K17/CalsPerPound/2.2),"") -> 14.3 | M17: =IFERROR(WeightToLoseGain-L17,"") -> 0.71 | N17: =IFERROR(IF(C16<>"",M17/(WeightToLoseGain),""),"") -> 5%
C18: 2013-02-26 | E18: 7 | F18: 149.1 | G18: =IFERROR(RunningBMR,"") -> 1449 | H18: =IFERROR(IF(L17>0,G17*ActivityFactor+IF(WeightGoal="Maintain",0,IF(WeightGoal="Decrease",-500,IF(WeightGoal="Increase",500))),""),"") -> 1748 | I18: =IFERROR(G18*(ActivityFactor),"") -> 2247 | J18: =IFERROR(IF(WeightGoal="Increase",H18-I18,I18-H18),"") -> 499 | K18: 49506 | L18: =IFERROR(IF(Standard,K18/CalsPerPound,K18/CalsPerPound/2.2),"") -> 14.1 | M18: =IFERROR(WeightToLoseGain-L18,"") -> 0.86 | N18: =IFERROR(IF(C17<>"",M18/(WeightToLoseGain),""),"") -> 6%
C19: 2013-02-27 | D19: 2 | E19: 8 | F19: 149.0 | G19: =IFERROR(RunningBMR,"") -> 1449 | H19: =IFERROR(IF(L18>0,G18*ActivityFactor+IF(WeightGoal="Maintain",0,IF(WeightGoal="Decrease",-500,IF(WeightGoal="Increase",500))),""),"") -> 1747 | I19: =IFERROR(G19*(ActivityFactor),"") -> 2246 | J19: =IFERROR(IF(WeightGoal="Increase",H19-I19,I19-H19),"") -> 499 | K19: 49007 | L19: =IFERROR(IF(Standard,K19/CalsPerPound,K19/CalsPerPound/2.2),"") -> 14.0 | M19: =IFERROR(WeightToLoseGain-L19,"") -> 1.00 | N19: =IFERROR(IF(C18<>"",M19/(WeightToLoseGain),""),"") -> 7%
C20: 2013-02-28 | E20: 9 | F20: 148.9 | G20: =IFERROR(RunningBMR,"") -> 1448 | H20: =IFERROR(IF(L19>0,G19*ActivityFactor+IF(WeightGoal="Maintain",0,IF(WeightGoal="Decrease",-500,IF(WeightGoal="Increase",500))),""),"") -> 1746 | I20: =IFERROR(G20*(ActivityFactor),"") -> 2245 | J20: =IFERROR(IF(WeightGoal="Increase",H20-I20,I20-H20),"") -> 499 | K20: 48508 | L20: =IFERROR(IF(Standard,K20/CalsPerPound,K20/CalsPerPound/2.2),"") -> 13.9 | M20: =IFERROR(WeightToLoseGain-L20,"") -> 1.14 | N20: =IFERROR(IF(C19<>"",M20/(WeightToLoseGain),""),"") -> 8%
C21: 2013-03-01 | E21: 10 | F21: 148.7 | G21: =IFERROR(RunningBMR,"") -> 1448 | H21: =IFERROR(IF(L20>0,G20*ActivityFactor+IF(WeightGoal="Maintain",0,IF(WeightGoal="Decrease",-500,IF(WeightGoal="Increase",500))),""),"") -> 1745 | I21: =IFERROR(G21*(ActivityFactor),"") -> 2244 | J21: =IFERROR(IF(WeightGoal="Increase",H21-I21,I21-H21),"") -> 499 | K21: 48009 | L21: =IFERROR(IF(Standard,K21/CalsPerPound,K21/CalsPerPound/2.2),"") -> 13.7 | M21: =IFERROR(WeightToLoseGain-L21,"") -> 1.28 | N21: =IFERROR(IF(C20<>"",M21/(WeightToLoseGain),""),"") -> 9%
C22: 2013-03-02 | E22: 11 | F22: 148.6 | G22: =IFERROR(RunningBMR,"") -> 1447 | H22: =IFERROR(IF(L21>0,G21*ActivityFactor+IF(WeightGoal="Maintain",0,IF(WeightGoal="Decrease",-500,IF(WeightGoal="Increase",500))),""),"") -> 1744 | I22: =IFERROR(G22*(ActivityFactor),"") -> 2243 | J22: =IFERROR(IF(WeightGoal="Increase",H22-I22,I22-H22),"") -> 499 | K22: 47510 | L22: =IFERROR(IF(Standard,K22/CalsPerPound,K22/CalsPerPound/2.2),"") -> 13.6 | M22: =IFERROR(WeightToLoseGain-L22,"") -> 1.43 | N22: =IFERROR(IF(C21<>"",M22/(WeightToLoseGain),""),"") -> 10%
C23: 2013-03-03 | E23: 12 | F23: 148.4 | G23: =IFERROR(RunningBMR,"") -> 1446 | H23: =IFERROR(IF(L22>0,G22*ActivityFactor+IF(WeightGoal="Maintain",0,IF(WeightGoal="Decrease",-500,IF(WeightGoal="Increase",500))),""),"") -> 1743 | I23: =IFERROR(G23*(ActivityFactor),"") -> 2242 | J23: =IFERROR(IF(WeightGoal="Increase",H23-I23,I23-H23),"") -> 499 | K23: 47011 | L23: =IFERROR(IF(Standard,K23/CalsPerPound,K23/CalsPerPound/2.2),"") -> 13.4 | M23: =IFERROR(WeightToLoseGain-L23,"") -> 1.57 | N23: =IFERROR(IF(C22<>"",M23/(WeightToLoseGain),""),"") -> 10%
C24: 2013-03-04 | E24: 13 | F24: 148.3 | G24: =IFERROR(RunningBMR,"") -> 1446 | H24: =IFERROR(IF(L23>0,G23*ActivityFactor+IF(WeightGoal="Maintain",0,IF(WeightGoal="Decrease",-500,IF(WeightGoal="Increase",500))),""),"") -> 1742 | I24: =IFERROR(G24*(ActivityFactor),"") -> 2241 | J24: =IFERROR(IF(WeightGoal="Increase",H24-I24,I24-H24),"") -> 499 | K24: 46512 | L24: =IFERROR(IF(Standard,K24/CalsPerPound,K24/CalsPerPound/2.2),"") -> 13.3 | M24: =IFERROR(WeightToLoseGain-L24,"") -> 1.71 | N24: =IFERROR(IF(C23<>"",M24/(WeightToLoseGain),""),"") -> 11%
C25: 2013-03-05 | E25: 14 | F25: 148.1 | G25: =IFERROR(RunningBMR,"") -> 1445 | H25: =IFERROR(IF(L24>0,G24*ActivityFactor+IF(WeightGoal="Maintain",0,IF(WeightGoal="Decrease",-500,IF(WeightGoal="Increase",500))),""),"") -> 1741 | I25: =IFERROR(G25*(ActivityFactor),"") -> 2240 | J25: =IFERROR(IF(WeightGoal="Increase",H25-I25,I25-H25),"") -> 499 | K25: 46012 | L25: =IFERROR(IF(Standard,K25/CalsPerPound,K25/CalsPerPound/2.2),"") -> 13.1 | M25: =IFERROR(WeightToLoseGain-L25,"") -> 1.85 | N25: =IFERROR(IF(C24<>"",M25/(WeightToLoseGain),""),"") -> 12%
C26: 2013-03-06 | D26: 3 | E26: 15 | F26: 148.0 | G26: =IFERROR(RunningBMR,"") -> 1445 | H26: =IFERROR(IF(L25>0,G25*ActivityFactor+IF(WeightGoal="Maintain",0,IF(WeightGoal="Decrease",-500,IF(WeightGoal="Increase",500))),""),"") -> 1740 | I26: =IFERROR(G26*(ActivityFactor),"") -> 2239 | J26: =IFERROR(IF(WeightGoal="Increase",H26-I26,I26-H26),"") -> 499 | K26: 45513 | L26: =IFERROR(IF(Standard,K26/CalsPerPound,K26/CalsPerPound/2.2),"") -> 13.0 | M26: =IFERROR(WeightToLoseGain-L26,"") -> 2.00 | N26: =IFERROR(IF(C25<>"",M26/(WeightToLoseGain),""),"") -> 13%
C27: 2013-03-07 | E27: 16 | F27: 147.9 | G27: =IFERROR(RunningBMR,"") -> 1444 | H27: =IFERROR(IF(L26>0,G26*ActivityFactor+IF(WeightGoal="Maintain",0,IF(WeightGoal="Decrease",-500,IF(WeightGoal="Increase",500))),""),"") -> 1739 | I27: =IFERROR(G27*(ActivityFactor),"") -> 2238 | J27: =IFERROR(IF(WeightGoal="Increase",H27-I27,I27-H27),"") -> 499 | K27: 45014 | L27: =IFERROR(IF(Standard,K27/CalsPerPound,K27/CalsPerPound/2.2),"") -> 12.9 | M27: =IFERROR(WeightToLoseGain-L27,"") -> 2.14 | N27: =IFERROR(IF(C26<>"",M27/(WeightToLoseGain),""),"") -> 14%
C28: 2013-03-08 | E28: 17 | F28: 147.7 | G28: =IFERROR(RunningBMR,"") -> 1443 | H28: =IFERROR(IF(L27>0,G27*ActivityFactor+IF(WeightGoal="Maintain",0,IF(WeightGoal="Decrease",-500,IF(WeightGoal="Increase",500))),""),"") -> 1738 | I28: =IFERROR(G28*(ActivityFactor),"") -> 2237 | J28: =IFERROR(IF(WeightGoal="Increase",H28-I28,I28-H28),"") -> 499 | K28: 44515 | L28: =IFERROR(IF(Standard,K28/CalsPerPound,K28/CalsPerPound/2.2),"") -> 12.7 | M28: =IFERROR(WeightToLoseGain-L28,"") -> 2.28 | N28: =IFERROR(IF(C27<>"",M28/(WeightToLoseGain),""),"") -> 15%
C29: 2013-03-09 | E29: 18 | F29: 147.6 | G29: =IFERROR(RunningBMR,"") -> 1443 | H29: =IFERROR(IF(L28>0,G28*ActivityFactor+IF(WeightGoal="Maintain",0,IF(WeightGoal="Decrease",-500,IF(WeightGoal="Increase",500))),""),"") -> 1737 | I29: =IFERROR(G29*(ActivityFactor),"") -> 2236 | J29: =IFERROR(IF(WeightGoal="Increase",H29-I29,I29-H29),"") -> 499 | K29: 44016 | L29: =IFERROR(IF(Standard,K29/CalsPerPound,K29/CalsPerPound/2.2),"") -> 12.6 | M29: =IFERROR(WeightToLoseGain-L29,"") -> 2.42 | N29: =IFERROR(IF(C28<>"",M29/(WeightToLoseGain),""),"") -> 16%
C30: 2013-03-10 | E30: 19 | F30: 147.4 | G30: =IFERROR(RunningBMR,"") -> 1442 | H30: =IFERROR(IF(L29>0,G29*ActivityFactor+IF(WeightGoal="Maintain",0,IF(WeightGoal="Decrease",-500,IF(WeightGoal="Increase",500))),""),"") -> 1736 | I30: =IFERROR(G30*(ActivityFactor),"") -> 2235 | J30: =IFERROR(IF(WeightGoal="Increase",H30-I30,I30-H30),"") -> 499 | K30: 43517 | L30: =IFERROR(IF(Standard,K30/CalsPerPound,K30/CalsPerPound/2.2),"") -> 12.4 | M30: =IFERROR(WeightToLoseGain-L30,"") -> 2.57 | N30: =IFERROR(IF(C29<>"",M30/(WeightToLoseGain),""),"") -> 17%
C31: 2013-03-11 | E31: 20 | F31: 147.3 | G31: =IFERROR(RunningBMR,"") -> 1441 | H31: =IFERROR(IF(L30>0,G30*ActivityFactor+IF(WeightGoal="Maintain",0,IF(WeightGoal="Decrease",-500,IF(WeightGoal="Increase",500))),""),"") -> 1735 | I31: =IFERROR(G31*(ActivityFactor),"") -> 2234 | J31: =IFERROR(IF(WeightGoal="Increase",H31-I31,I31-H31),"") -> 499 | K31: 43018 | L31: =IFERROR(IF(Standard,K31/CalsPerPound,K31/CalsPerPound/2.2),"") -> 12.3 | M31: =IFERROR(WeightToLoseGain-L31,"") -> 2.71 | N31: =IFERROR(IF(C30<>"",M31/(WeightToLoseGain),""),"") -> 18%
C32: 2013-03-12 | E32: 21 | F32: 147.1 | G32: =IFERROR(RunningBMR,"") -> 1441 | H32: =IFERROR(IF(L31>0,G31*ActivityFactor+IF(WeightGoal="Maintain",0,IF(WeightGoal="Decrease",-500,IF(WeightGoal="Increase",500))),""),"") -> 1734 | I32: =IFERROR(G32*(ActivityFactor),"") -> 2233 | J32: =IFERROR(IF(WeightGoal="Increase",H32-I32,I32-H32),"") -> 499 | K32: 42519 | L32: =IFERROR(IF(Standard,K32/CalsPerPound,K32/CalsPerPound/2.2),"") -> 12.1 | M32: =IFERROR(WeightToLoseGain-L32,"") -> 2.85 | N32: =IFERROR(IF(C31<>"",M32/(WeightToLoseGain),""),"") -> 19%
C33: 2013-03-13 | D33: 4 | E33: 22 | F33: 147.0 | G33: =IFERROR(RunningBMR,"") -> 1440 | H33: =IFERROR(IF(L32>0,G32*ActivityFactor+IF(WeightGoal="Maintain",0,IF(WeightGoal="Decrease",-500,IF(WeightGoal="Increase",500))),""),"") -> 1733 | I33: =IFERROR(G33*(ActivityFactor),"") -> 2232 | J33: =IFERROR(IF(WeightGoal="Increase",H33-I33,I33-H33),"") -> 499 | K33: 42020 | L33: =IFERROR(IF(Standard,K33/CalsPerPound,K33/CalsPerPound/2.2),"") -> 12.0 | M33: =IFERROR(WeightToLoseGain-L33,"") -> 2.99 | N33: =IFERROR(IF(C32<>"",M33/(WeightToLoseGain),""),"") -> 20%
C34: 2013-03-14 | E34: 23 | F34: 146.9 | G34: =IFERROR(RunningBMR,"") -> 1440 | H34: =IFERROR(IF(L33>0,G33*ActivityFactor+IF(WeightGoal="Maintain",0,IF(WeightGoal="Decrease",-500,IF(WeightGoal="Increase",500))),""),"") -> 1732 | I34: =IFERROR(G34*(ActivityFactor),"") -> 2231 | J34: =IFERROR(IF(WeightGoal="Increase",H34-I34,I34-H34),"") -> 499 | K34: 41521 | L34: =IFERROR(IF(Standard,K34/CalsPerPound,K34/CalsPerPound/2.2),"") -> 11.9 | M34: =IFERROR(WeightToLoseGain-L34,"") -> 3.14 | N34: =IFERROR(IF(C33<>"",M34/(WeightToLoseGain),""),"") -> 21%
C35: 2013-03-15 | E35: 24 | F35: 146.7 | G35: =IFERROR(RunningBMR,"") -> 1439 | H35: =IFERROR(IF(L34>0,G34*ActivityFactor+IF(WeightGoal="Maintain",0,IF(WeightGoal="Decrease",-500,IF(WeightGoal="Increase",500))),""),"") -> 1731 | I35: =IFERROR(G35*(ActivityFactor),"") -> 2230 | J35: =IFERROR(IF(WeightGoal="Increase",H35-I35,I35-H35),"") -> 499 | K35: 41022 | L35: =IFERROR(IF(Standard,K35/CalsPerPound,K35/CalsPerPound/2.2),"") -> 11.7 | M35: =IFERROR(WeightToLoseGain-L35,"") -> 3.28 | N35: =IFERROR(IF(C34<>"",M35/(WeightToLoseGain),""),"") -> 22%
C36: 2013-03-16 | E36: 25 | F36: 146.6 | G36: =IFERROR(RunningBMR,"") -> 1438 | H36: =IFERROR(IF(L35>0,G35*ActivityFactor+IF(WeightGoal="Maintain",0,IF(WeightGoal="Decrease",-500,IF(WeightGoal="Increase",500))),""),"") -> 1730 | I36: =IFERROR(G36*(ActivityFactor),"") -> 2229 | J36: =IFERROR(IF(WeightGoal="Increase",H36-I36,I36-H36),"") -> 499 | K36: 40523 | L36: =IFERROR(IF(Standard,K36/CalsPerPound,K36/CalsPerPound/2.2),"") -> 11.6 | M36: =IFERROR(WeightToLoseGain-L36,"") -> 3.42 | N36: =IFERROR(IF(C35<>"",M36/(WeightToLoseGain),""),"") -> 23%
C37: 2013-03-17 | E37: 26 | F37: 146.4 | G37: =IFERROR(RunningBMR,"") -> 1438 | H37: =IFERROR(IF(L36>0,G36*ActivityFactor+IF(WeightGoal="Maintain",0,IF(WeightGoal="Decrease",-500,IF(WeightGoal="Increase",500))),""),"") -> 1729 | I37: =IFERROR(G37*(ActivityFactor),"") -> 2228 | J37: =IFERROR(IF(WeightGoal="Increase",H37-I37,I37-H37),"") -> 499 | K37: 40024 | L37: =IFERROR(IF(Standard,K37/CalsPerPound,K37/CalsPerPound/2.2),"") -> 11.4 | M37: =IFERROR(WeightToLoseGain-L37,"") -> 3.56 | N37: =IFERROR(IF(C36<>"",M37/(WeightToLoseGain),""),"") -> 24%
C38: 2013-03-18 | E38: 27 | F38: 146.3 | G38: =IFERROR(RunningBMR,"") -> 1437 | H38: =IFERROR(IF(L37>0,G37*ActivityFactor+IF(WeightGoal="Maintain",0,IF(WeightGoal="Decrease",-500,IF(WeightGoal="Increase",500))),""),"") -> 1728 | I38: =IFERROR(G38*(ActivityFactor),"") -> 2227 | J38: =IFERROR(IF(WeightGoal="Increase",H38-I38,I38-H38),"") -> 499 | K38: 39525 | L38: =IFERROR(IF(Standard,K38/CalsPerPound,K38/CalsPerPound/2.2),"") -> 11.3 | M38: =IFERROR(WeightToLoseGain-L38,"") -> 3.71 | N38: =IFERROR(IF(C37<>"",M38/(WeightToLoseGain),""),"") -> 25%
C39: 2013-03-19 | E39: 28 | F39: 146.1 | G39: =IFERROR(RunningBMR,"") -> 1436 | H39: =IFERROR(IF(L38>0,G38*ActivityFactor+IF(WeightGoal="Maintain",0,IF(WeightGoal="Decrease",-500,IF(WeightGoal="Increase",500))),""),"") -> 1727 | I39: =IFERROR(G39*(ActivityFactor),"") -> 2227 | J39: =IFERROR(IF(WeightGoal="Increase",H39-I39,I39-H39),"") -> 499 | K39: 39026 | L39: =IFERROR(IF(Standard,K39/CalsPerPound,K39/CalsPerPound/2.2),"") -> 11.2 | M39: =IFERROR(WeightToLoseGain-L39,"") -> 3.85 | N39: =IFERROR(IF(C38<>"",M39/(WeightToLoseGain),""),"") -> 26%
C40: 2013-03-20 | D40: 5 | E40: 29 | F40: 146.0 | G40: =IFERROR(RunningBMR,"") -> 1436 | H40: =IFERROR(IF(L39>0,G39*ActivityFactor+IF(WeightGoal="Maintain",0,IF(WeightGoal="Decrease",-500,IF(WeightGoal="Increase",500))),""),"") -> 1727 | I40: =IFERROR(G40*(ActivityFactor),"") -> 2226 | J40: =IFERROR(IF(WeightGoal="Increase",H40-I40,I40-H40),"") -> 499 | K40: 38527 | L40: =IFERROR(IF(Standard,K40/CalsPerPound,K40/CalsPerPound/2.2),"") -> 11.0 | M40: =IFERROR(WeightToLoseGain-L40,"") -> 3.99 | N40: =IFERROR(IF(C39<>"",M40/(WeightToLoseGain),""),"") -> 27%
C41: 2013-03-21 | E41: 30 | F41: 145.9 | G41: =IFERROR(RunningBMR,"") -> 1435 | H41: =IFERROR(IF(L40>0,G40*ActivityFactor+IF(WeightGoal="Maintain",0,IF(WeightGoal="Decrease",-500,IF(WeightGoal="Increase",500))),""),"") -> 1726 | I41: =IFERROR(G41*(ActivityFactor),"") -> 2225 | J41: =IFERROR(IF(WeightGoal="Increase",H41-I41,I41-H41),"") -> 499 | K41: 38028 | L41: =IFERROR(IF(Standard,K41/CalsPerPound,K41/CalsPerPound/2.2),"") -> 10.9 | M41: =IFERROR(WeightToLoseGain-L41,"") -> 4.13 | N41: =IFERROR(IF(C40<>"",M41/(WeightToLoseGain),""),"") -> 28%
C42: 2013-03-22 | E42: 31 | F42: 145.7 | G42: =IFERROR(RunningBMR,"") -> 1435 | H42: =IFERROR(IF(L41>0,G41*ActivityFactor+IF(WeightGoal="Maintain",0,IF(WeightGoal="Decrease",-500,IF(WeightGoal="Increase",500))),""),"") -> 1725 | I42: =IFERROR(G42*(ActivityFactor),"") -> 2224 | J42: =IFERROR(IF(WeightGoal="Increase",H42-I42,I42-H42),"") -> 499 | K42: 37529 | L42: =IFERROR(IF(Standard,K42/CalsPerPound,K42/CalsPerPound/2.2),"") -> 10.7 | M42: =IFERROR(WeightToLoseGain-L42,"") -> 4.28 | N42: =IFERROR(IF(C41<>"",M42/(WeightToLoseGain),""),"") -> 29%
C43: 2013-03-23 | E43: 32 | F43: 145.6 | G43: =IFERROR(RunningBMR,"") -> 1434 | H43: =IFERROR(IF(L42>0,G42*ActivityFactor+IF(WeightGoal="Maintain",0,IF(WeightGoal="Decrease",-500,IF(WeightGoal="Increase",500))),""),"") -> 1724 | I43: =IFERROR(G43*(ActivityFactor),"") -> 2223 | J43: =IFERROR(IF(WeightGoal="Increase",H43-I43,I43-H43),"") -> 499 | K43: 37030 | L43: =IFERROR(IF(Standard,K43/CalsPerPound,K43/CalsPerPound/2.2),"") -> 10.6 | M43: =IFERROR(WeightToLoseGain-L43,"") -> 4.42 | N43: =IFERROR(IF(C42<>"",M43/(WeightToLoseGain),""),"") -> 29%
C44: 2013-03-24 | E44: 33 | F44: 145.4 | G44: =IFERROR(RunningBMR,"") -> 1433 | H44: =IFERROR(IF(L43>0,G43*ActivityFactor+IF(WeightGoal="Maintain",0,IF(WeightGoal="Decrease",-500,IF(WeightGoal="Increase",500))),""),"") -> 1723 | I44: =IFERROR(G44*(ActivityFactor),"") -> 2222 | J44: =IFERROR(IF(WeightGoal="Increase",H44-I44,I44-H44),"") -> 499 | K44: 36531 | L44: =IFERROR(IF(Standard,K44/CalsPerPound,K44/CalsPerPound/2.2),"") -> 10.4 | M44: =IFERROR(WeightToLoseGain-L44,"") -> 4.56 | N44: =IFERROR(IF(C43<>"",M44/(WeightToLoseGain),""),"") -> 30%
C45: 2013-03-25 | E45: 34 | F45: 145.3 | G45: =IFERROR(RunningBMR,"") -> 1433 | H45: =IFERROR(IF(L44>0,G44*ActivityFactor+IF(WeightGoal="Maintain",0,IF(WeightGoal="Decrease",-500,IF(WeightGoal="Increase",500))),""),"") -> 1722 | I45: =IFERROR(G45*(ActivityFactor),"") -> 2221 | J45: =IFERROR(IF(WeightGoal="Increase",H45-I45,I45-H45),"") -> 499 | K45: 36032 | L45: =IFERROR(IF(Standard,K45/CalsPerPound,K45/CalsPerPound/2.2),"") -> 10.3 | M45: =IFERROR(WeightToLoseGain-L45,"") -> 4.71 | N45: =IFERROR(IF(C44<>"",M45/(WeightToLoseGain),""),"") -> 31%
C46: 2013-03-26 | E46: 35 | F46: 145.2 | G46: =IFERROR(RunningBMR,"") -> 1432 | H46: =IFERROR(IF(L45>0,G45*ActivityFactor+IF(WeightGoal="Maintain",0,IF(WeightGoal="Decrease",-500,IF(WeightGoal="Increase",500))),""),"") -> 1721 | I46: =IFERROR(G46*(ActivityFactor),"") -> 2220 | J46: =IFERROR(IF(WeightGoal="Increase",H46-I46,I46-H46),"") -> 499 | K46: 35533 | L46: =IFERROR(IF(Standard,K46/CalsPerPound,K46/CalsPerPound/2.2),"") -> 10.2 | M46: =IFERROR(WeightToLoseGain-L46,"") -> 4.85 | N46: =IFERROR(IF(C45<>"",M46/(WeightToLoseGain),""),"") -> 32%
C47: 2013-03-27 | D47: 6 | E47: 36 | F47: 145.0 | G47: =IFERROR(RunningBMR,"") -> 1431 | H47: =IFERROR(IF(L46>0,G46*ActivityFactor+IF(WeightGoal="Maintain",0,IF(WeightGoal="Decrease",-500,IF(WeightGoal="Increase",500))),""),"") -> 1720 | I47: =IFERROR(G47*(ActivityFactor),"") -> 2219 | J47: =IFERROR(IF(WeightGoal="Increase",H47-I47,I47-H47),"") -> 499 | K47: 35034 | L47: =IFERROR(IF(Standard,K47/CalsPerPound,K47/CalsPerPound/2.2),"") -> 10.0 | M47: =IFERROR(WeightToLoseGain-L47,"") -> 4.99 | N47: =IFERROR(IF(C46<>"",M47/(WeightToLoseGain),""),"") -> 33%
C48: 2013-03-28 | E48: 37 | F48: 144.9 | G48: =IFERROR(RunningBMR,"") -> 1431 | H48: =IFERROR(IF(L47>0,G47*ActivityFactor+IF(WeightGoal="Maintain",0,IF(WeightGoal="Decrease",-500,IF(WeightGoal="Increase",500))),""),"") -> 1719 | I48: =IFERROR(G48*(ActivityFactor),"") -> 2218 | J48: =IFERROR(IF(WeightGoal="Increase",H48-I48,I48-H48),"") -> 499 | K48: 34535 | L48: =IFERROR(IF(Standard,K48/CalsPerPound,K48/CalsPerPound/2.2),"") -> 9.9 | M48: =IFERROR(WeightToLoseGain-L48,"") -> 5.13 | N48: =IFERROR(IF(C47<>"",M48/(WeightToLoseGain),""),"") -> 34%
C49: 2013-03-29 | E49: 38 | F49: 144.7 | G49: =IFERROR(RunningBMR,"") -> 1430 | H49: =IFERROR(IF(L48>0,G48*ActivityFactor+IF(WeightGoal="Maintain",0,IF(WeightGoal="Decrease",-500,IF(WeightGoal="Increase",500))),""),"") -> 1718 | I49: =IFERROR(G49*(ActivityFactor),"") -> 2217 | J49: =IFERROR(IF(WeightGoal="Increase",H49-I49,I49-H49),"") -> 499 | K49: 34036 | L49: =IFERROR(IF(Standard,K49/CalsPerPound,K49/CalsPerPound/2.2),"") -> 9.7 | M49: =IFERROR(WeightToLoseGain-L49,"") -> 5.28 | N49: =IFERROR(IF(C48<>"",M49/(WeightToLoseGain),""),"") -> 35%
C50: 2013-03-30 | E50: 39 | F50: 144.6 | G50: =IFERROR(RunningBMR,"") -> 1430 | H50: =IFERROR(IF(L49>0,G49*ActivityFactor+IF(WeightGoal="Maintain",0,IF(WeightGoal="Decrease",-500,IF(WeightGoal="Increase",500))),""),"") -> 1717 | I50: =IFERROR(G50*(ActivityFactor),"") -> 2216 | J50: =IFERROR(IF(WeightGoal="Increase",H50-I50,I50-H50),"") -> 499 | K50: 33537 | L50: =IFERROR(IF(Standard,K50/CalsPerPound,K50/CalsPerPound/2.2),"") -> 9.6 | M50: =IFERROR(WeightToLoseGain-L50,"") -> 5.42 | N50: =IFERROR(IF(C49<>"",M50/(WeightToLoseGain),""),"") -> 36%
C51: 2013-03-31 | E51: 40 | F51: 144.4 | G51: =IFERROR(RunningBMR,"") -> 1429 | H51: =IFERROR(IF(L50>0,G50*ActivityFactor+IF(WeightGoal="Maintain",0,IF(WeightGoal="Decrease",-500,IF(WeightGoal="Increase",500))),""),"") -> 1716 | I51: =IFERROR(G51*(ActivityFactor),"") -> 2215 | J51: =IFERROR(IF(WeightGoal="Increase",H51-I51,I51-H51),"") -> 499 | K51: 33037 | L51: =IFERROR(IF(Standard,K51/CalsPerPound,K51/CalsPerPound/2.2),"") -> 9.4 | M51: =IFERROR(WeightToLoseGain-L51,"") -> 5.56 | N51: =IFERROR(IF(C50<>"",M51/(WeightToLoseGain),""),"") -> 37%
C52: 2013-04-01 | E52: 41 | F52: 144.3 | G52: =IFERROR(RunningBMR,"") -> 1428 | H52: =IFERROR(IF(L51>0,G51*ActivityFactor+IF(WeightGoal="Maintain",0,IF(WeightGoal="Decrease",-500,IF(WeightGoal="Increase",500))),""),"") -> 1715 | I52: =IFERROR(G52*(ActivityFactor),"") -> 2214 | J52: =IFERROR(IF(WeightGoal="Increase",H52-I52,I52-H52),"") -> 499 | K52: 32538 | L52: =IFERROR(IF(Standard,K52/CalsPerPound,K52/CalsPerPound/2.2),"") -> 9.3 | M52: =IFERROR(WeightToLoseGain-L52,"") -> 5.70 | N52: =IFERROR(IF(C51<>"",M52/(WeightToLoseGain),""),"") -> 38%
C53: 2013-04-02 | E53: 42 | F53: 144.2 | G53: =IFERROR(RunningBMR,"") -> 1428 | H53: =IFERROR(IF(L52>0,G52*ActivityFactor+IF(WeightGoal="Maintain",0,IF(WeightGoal="Decrease",-500,IF(WeightGoal="Increase",500))),""),"") -> 1714 | I53: =IFERROR(G53*(ActivityFactor),"") -> 2213 | J53: =IFERROR(IF(WeightGoal="Increase",H53-I53,I53-H53),"") -> 499 | K53: 32039 | L53: =IFERROR(IF(Standard,K53/CalsPerPound,K53/CalsPerPound/2.2),"") -> 9.2 | M53: =IFERROR(WeightToLoseGain-L53,"") -> 5.85 | N53: =IFERROR(IF(C52<>"",M53/(WeightToLoseGain),""),"") -> 39%
C54: 2013-04-03 | D54: 7 | E54: 43 | F54: 144.0 | G54: =IFERROR(RunningBMR,"") -> 1427 | H54: =IFERROR(IF(L53>0,G53*ActivityFactor+IF(WeightGoal="Maintain",0,IF(WeightGoal="Decrease",-500,IF(WeightGoal="Increase",500))),""),"") -> 1713 | I54: =IFERROR(G54*(ActivityFactor),"") -> 2212 | J54: =IFERROR(IF(WeightGoal="Increase",H54-I54,I54-H54),"") -> 499 | K54: 31540 | L54: =IFERROR(IF(Standard,K54/CalsPerPound,K54/CalsPerPound/2.2),"") -> 9.0 | M54: =IFERROR(WeightToLoseGain-L54,"") -> 5.99 | N54: =IFERROR(IF(C53<>"",M54/(WeightToLoseGain),""),"") -> 40%
C55: 2013-04-04 | E55: 44 | F55: 143.9 | G55: =IFERROR(RunningBMR,"") -> 1427 | H55: =IFERROR(IF(L54>0,G54*ActivityFactor+IF(WeightGoal="Maintain",0,IF(WeightGoal="Decrease",-500,IF(WeightGoal="Increase",500))),""),"") -> 1712 | I55: =IFERROR(G55*(ActivityFactor),"") -> 2211 | J55: =IFERROR(IF(WeightGoal="Increase",H55-I55,I55-H55),"") -> 499 | K55: 31041 | L55: =IFERROR(IF(Standard,K55/CalsPerPound,K55/CalsPerPound/2.2),"") -> 8.9 | M55: =IFERROR(WeightToLoseGain-L55,"") -> 6.13 | N55: =IFERROR(IF(C54<>"",M55/(WeightToLoseGain),""),"") -> 41%
C56: 2013-04-05 | E56: 45 | F56: 143.7 | G56: =IFERROR(RunningBMR,"") -> 1426 | H56: =IFERROR(IF(L55>0,G55*ActivityFactor+IF(WeightGoal="Maintain",0,IF(WeightGoal="Decrease",-500,IF(WeightGoal="Increase",500))),""),"") -> 1711 | I56: =IFERROR(G56*(ActivityFactor),"") -> 2210 | J56: =IFERROR(IF(WeightGoal="Increase",H56-I56,I56-H56),"") -> 499 | K56: 30542 | L56: =IFERROR(IF(Standard,K56/CalsPerPound,K56/CalsPerPound/2.2),"") -> 8.7 | M56: =IFERROR(WeightToLoseGain-L56,"") -> 6.27 | N56: =IFERROR(IF(C55<>"",M56/(WeightToLoseGain),""),"") -> 42%
C57: 2013-04-06 | E57: 46 | F57: 143.6 | G57: =IFERROR(RunningBMR,"") -> 1425 | H57: =IFERROR(IF(L56>0,G56*ActivityFactor+IF(WeightGoal="Maintain",0,IF(WeightGoal="Decrease",-500,IF(WeightGoal="Increase",500))),""),"") -> 1710 | I57: =IFERROR(G57*(ActivityFactor),"") -> 2209 | J57: =IFERROR(IF(WeightGoal="Increase",H57-I57,I57-H57),"") -> 499 | K57: 30043 | L57: =IFERROR(IF(Standard,K57/CalsPerPound,K57/CalsPerPound/2.2),"") -> 8.6 | M57: =IFERROR(WeightToLoseGain-L57,"") -> 6.42 | N57: =IFERROR(IF(C56<>"",M57/(WeightToLoseGain),""),"") -> 43%
C58: 2013-04-07 | E58: 47 | F58: 143.4 | G58: =IFERROR(RunningBMR,"") -> 1425 | H58: =IFERROR(IF(L57>0,G57*ActivityFactor+IF(WeightGoal="Maintain",0,IF(WeightGoal="Decrease",-500,IF(WeightGoal="Increase",500))),""),"") -> 1709 | I58: =IFERROR(G58*(ActivityFactor),"") -> 2208 | J58: =IFERROR(IF(WeightGoal="Increase",H58-I58,I58-H58),"") -> 499 | K58: 29544 | L58: =IFERROR(IF(Standard,K58/CalsPerPound,K58/CalsPerPound/2.2),"") -> 8.4 | M58: =IFERROR(WeightToLoseGain-L58,"") -> 6.56 | N58: =IFERROR(IF(C57<>"",M58/(WeightToLoseGain),""),"") -> 44%
C59: 2013-04-08 | E59: 48 | F59: 143.3 | G59: =IFERROR(RunningBMR,"") -> 1424 | H59: =IFERROR(IF(L58>0,G58*ActivityFactor+IF(WeightGoal="Maintain",0,IF(WeightGoal="Decrease",-500,IF(WeightGoal="Increase",500))),""),"") -> 1708 | I59: =IFERROR(G59*(ActivityFactor),"") -> 2207 | J59: =IFERROR(IF(WeightGoal="Increase",H59-I59,I59-H59),"") -> 499 | K59: 29045 | L59: =IFERROR(IF(Standard,K59/CalsPerPound,K59/CalsPerPound/2.2),"") -> 8.3 | M59: =IFERROR(WeightToLoseGain-L59,"") -> 6.70 | N59: =IFERROR(IF(C58<>"",M59/(WeightToLoseGain),""),"") -> 45%
C60: 2013-04-09 | E60: 49 | F60: 143.2 | G60: =IFERROR(RunningBMR,"") -> 1423 | H60: =IFERROR(IF(L59>0,G59*ActivityFactor+IF(WeightGoal="Maintain",0,IF(WeightGoal="Decrease",-500,IF(WeightGoal="Increase",500))),""),"") -> 1707 | I60: =IFERROR(G60*(ActivityFactor),"") -> 2206 | J60: =IFERROR(IF(WeightGoal="Increase",H60-I60,I60-H60),"") -> 499 | K60: 28546 | L60: =IFERROR(IF(Standard,K60/CalsPerPound,K60/CalsPerPound/2.2),"") -> 8.2 | M60: =IFERROR(WeightToLoseGain-L60,"") -> 6.84 | N60: =IFERROR(IF(C59<>"",M60/(WeightToLoseGain),""),"") -> 46%
C61: 2013-04-10 | D61: 8 | E61: 50 | F61: 143.0 | G61: =IFERROR(RunningBMR,"") -> 1423 | H61: =IFERROR(IF(L60>0,G60*ActivityFactor+IF(WeightGoal="Maintain",0,IF(WeightGoal="Decrease",-500,IF(WeightGoal="Increase",500))),""),"") -> 1706 | I61: =IFERROR(G61*(ActivityFactor),"") -> 2205 | J61: =IFERROR(IF(WeightGoal="Increase",H61-I61,I61-H61),"") -> 499 | K61: 28047 | L61: =IFERROR(IF(Standard,K61/CalsPerPound,K61/CalsPerPound/2.2),"") -> 8.0 | M61: =IFERROR(WeightToLoseGain-L61,"") -> 6.99 | N61: =IFERROR(IF(C60<>"",M61/(WeightToLoseGain),""),"") -> 47%
C62: 2013-04-11 | E62: 51 | F62: 142.9 | G62: =IFERROR(RunningBMR,"") -> 1422 | H62: =IFERROR(IF(L61>0,G61*ActivityFactor+IF(WeightGoal="Maintain",0,IF(WeightGoal="Decrease",-500,IF(WeightGoal="Increase",500))),""),"") -> 1705 | I62: =IFERROR(G62*(ActivityFactor),"") -> 2204 | J62: =IFERROR(IF(WeightGoal="Increase",H62-I62,I62-H62),"") -> 499 | K62: 27548 | L62: =IFERROR(IF(Standard,K62/CalsPerPound,K62/CalsPerPound/2.2),"") -> 7.9 | M62: =IFERROR(WeightToLoseGain-L62,"") -> 7.13 | N62: =IFERROR(IF(C61<>"",M62/(WeightToLoseGain),""),"") -> 48%
C63: 2013-04-12 | E63: 52 | F63: 142.7 | G63: =IFERROR(RunningBMR,"") -> 1422 | H63: =IFERROR(IF(L62>0,G62*ActivityFactor+IF(WeightGoal="Maintain",0,IF(WeightGoal="Decrease",-500,IF(WeightGoal="Increase",500))),""),"") -> 1704 | I63: =IFERROR(G63*(ActivityFactor),"") -> 2203 | J63: =IFERROR(IF(WeightGoal="Increase",H63-I63,I63-H63),"") -> 499 | K63: 27049 | L63: =IFERROR(IF(Standard,K63/CalsPerPound,K63/CalsPerPound/2.2),"") -> 7.7 | M63: =IFERROR(WeightToLoseGain-L63,"") -> 7.27 | N63: =IFERROR(IF(C62<>"",M63/(WeightToLoseGain),""),"") -> 48%
C64: 2013-04-13 | E64: 53 | F64: 142.6 | G64: =IFERROR(RunningBMR,"") -> 1421 | H64: =IFERROR(IF(L63>0,G63*ActivityFactor+IF(WeightGoal="Maintain",0,IF(WeightGoal="Decrease",-500,IF(WeightGoal="Increase",500))),""),"") -> 1703 | I64: =IFERROR(G64*(ActivityFactor),"") -> 2202 | J64: =IFERROR(IF(WeightGoal="Increase",H64-I64,I64-H64),"") -> 499 | K64: 26550 | L64: =IFERROR(IF(Standard,K64/CalsPerPound,K64/CalsPerPound/2.2),"") -> 7.6 | M64: =IFERROR(WeightToLoseGain-L64,"") -> 7.41 | N64: =IFERROR(IF(C63<>"",M64/(WeightToLoseGain),""),"") -> 49%
C65: 2013-04-14 | E65: 54 | F65: 142.4 | G65: =IFERROR(RunningBMR,"") -> 1420 | H65: =IFERROR(IF(L64>0,G64*ActivityFactor+IF(WeightGoal="Maintain",0,IF(WeightGoal="Decrease",-500,IF(WeightGoal="Increase",500))),""),"") -> 1702 | I65: =IFERROR(G65*(ActivityFactor),"") -> 2202 | J65: =IFERROR(IF(WeightGoal="Increase",H65-I65,I65-H65),"") -> 499 | K65: 26051 | L65: =IFERROR(IF(Standard,K65/CalsPerPound,K65/CalsPerPound/2.2),"") -> 7.4 | M65: =IFERROR(WeightToLoseGain-L65,"") -> 7.56 | N65: =IFERROR(IF(C64<>"",M65/(WeightToLoseGain),""),"") -> 50%
C66: 2013-04-15 | E66: 55 | F66: 142.3 | G66: =IFERROR(RunningBMR,"") -> 1420 | H66: =IFERROR(IF(L65>0,G65*ActivityFactor+IF(WeightGoal="Maintain",0,IF(WeightGoal="Decrease",-500,IF(WeightGoal="Increase",500))),""),"") -> 1702 | I66: =IFERROR(G66*(ActivityFactor),"") -> 2201 | J66: =IFERROR(IF(WeightGoal="Increase",H66-I66,I66-H66),"") -> 499 | K66: 25552 | L66: =IFERROR(IF(Standard,K66/CalsPerPound,K66/CalsPerPound/2.2),"") -> 7.3 | M66: =IFERROR(WeightToLoseGain-L66,"") -> 7.70 | N66: =IFERROR(IF(C65<>"",M66/(WeightToLoseGain),""),"") -> 51%
C67: 2013-04-16 | E67: 56 | F67: 142.2 | G67: =IFERROR(RunningBMR,"") -> 1419 | H67: =IFERROR(IF(L66>0,G66*ActivityFactor+IF(WeightGoal="Maintain",0,IF(WeightGoal="Decrease",-500,IF(WeightGoal="Increase",500))),""),"") -> 1701 | I67: =IFERROR(G67*(ActivityFactor),"") -> 2200 | J67: =IFERROR(IF(WeightGoal="Increase",H67-I67,I67-H67),"") -> 499 | K67: 25053 | L67: =IFERROR(IF(Standard,K67/CalsPerPound,K67/CalsPerPound/2.2),"") -> 7.2 | M67: =IFERROR(WeightToLoseGain-L67,"") -> 7.84 | N67: =IFERROR(IF(C66<>"",M67/(WeightToLoseGain),""),"") -> 52%
C68: 2013-04-17 | D68: 9 | E68: 57 | F68: 142.0 | G68: =IFERROR(RunningBMR,"") -> 1418 | H68: =IFERROR(IF(L67>0,G67*ActivityFactor+IF(WeightGoal="Maintain",0,IF(WeightGoal="Decrease",-500,IF(WeightGoal="Increase",500))),""),"") -> 1700 | I68: =IFERROR(G68*(ActivityFactor),"") -> 2199 | J68: =IFERROR(IF(WeightGoal="Increase",H68-I68,I68-H68),"") -> 499 | K68: 24554 | L68: =IFERROR(IF(Standard,K68/CalsPerPound,K68/CalsPerPound/2.2),"") -> 7.0 | M68: =IFERROR(WeightToLoseGain-L68,"") -> 7.98 | N68: =IFERROR(IF(C67<>"",M68/(WeightToLoseGain),""),"") -> 53%
C69: 2013-04-18 | E69: 58 | F69: 141.9 | G69: =IFERROR(RunningBMR,"") -> 1418 | H69: =IFERROR(IF(L68>0,G68*ActivityFactor+IF(WeightGoal="Maintain",0,IF(WeightGoal="Decrease",-500,IF(WeightGoal="Increase",500))),""),"") -> 1699 | I69: =IFERROR(G69*(ActivityFactor),"") -> 2198 | J69: =IFERROR(IF(WeightGoal="Increase",H69-I69,I69-H69),"") -> 499 | K69: 24055 | L69: =IFERROR(IF(Standard,K69/CalsPerPound,K69/CalsPerPound/2.2),"") -> 6.9 | M69: =IFERROR(WeightToLoseGain-L69,"") -> 8.13 | N69: =IFERROR(IF(C68<>"",M69/(WeightToLoseGain),""),"") -> 54%
C70: 2013-04-19 | E70: 59 | F70: 141.7 | G70: =IFERROR(RunningBMR,"") -> 1417 | H70: =IFERROR(IF(L69>0,G69*ActivityFactor+IF(WeightGoal="Maintain",0,IF(WeightGoal="Decrease",-500,IF(WeightGoal="Increase",500))),""),"") -> 1698 | I70: =IFERROR(G70*(ActivityFactor),"") -> 2197 | J70: =IFERROR(IF(WeightGoal="Increase",H70-I70,I70-H70),"") -> 499 | K70: 23556 | L70: =IFERROR(IF(Standard,K70/CalsPerPound,K70/CalsPerPound/2.2),"") -> 6.7 | M70: =IFERROR(WeightToLoseGain-L70,"") -> 8.27 | N70: =IFERROR(IF(C69<>"",M70/(WeightToLoseGain),""),"") -> 55%
C71: 2013-04-20 | E71: 60 | F71: 141.6 | G71: =IFERROR(RunningBMR,"") -> 1417 | H71: =IFERROR(IF(L70>0,G70*ActivityFactor+IF(WeightGoal="Maintain",0,IF(WeightGoal="Decrease",-500,IF(WeightGoal="Increase",500))),""),"") -> 1697 | I71: =IFERROR(G71*(ActivityFactor),"") -> 2196 | J71: =IFERROR(IF(WeightGoal="Increase",H71-I71,I71-H71),"") -> 499 | K71: 23057 | L71: =IFERROR(IF(Standard,K71/CalsPerPound,K71/CalsPerPound/2.2),"") -> 6.6 | M71: =IFERROR(WeightToLoseGain-L71,"") -> 8.41 | N71: =IFERROR(IF(C70<>"",M71/(WeightToLoseGain),""),"") -> 56%
C72: 2013-04-21 | E72: 61 | F72: 141.4 | G72: =IFERROR(RunningBMR,"") -> 1416 | H72: =IFERROR(IF(L71>0,G71*ActivityFactor+IF(WeightGoal="Maintain",0,IF(WeightGoal="Decrease",-500,IF(WeightGoal="Increase",500))),""),"") -> 1696 | I72: =IFERROR(G72*(ActivityFactor),"") -> 2195 | J72: =IFERROR(IF(WeightGoal="Increase",H72-I72,I72-H72),"") -> 499 | K72: 22558 | L72: =IFERROR(IF(Standard,K72/CalsPerPound,K72/CalsPerPound/2.2),"") -> 6.4 | M72: =IFERROR(WeightToLoseGain-L72,"") -> 8.55 | N72: =IFERROR(IF(C71<>"",M72/(WeightToLoseGain),""),"") -> 57%
C73: 2013-04-22 | E73: 62 | F73: 141.3 | G73: =IFERROR(RunningBMR,"") -> 1415 | H73: =IFERROR(IF(L72>0,G72*ActivityFactor+IF(WeightGoal="Maintain",0,IF(WeightGoal="Decrease",-500,IF(WeightGoal="Increase",500))),""),"") -> 1695 | I73: =IFERROR(G73*(ActivityFactor),"") -> 2194 | J73: =IFERROR(IF(WeightGoal="Increase",H73-I73,I73-H73),"") -> 499 | K73: 22059 | L73: =IFERROR(IF(Standard,K73/CalsPerPound,K73/CalsPerPound/2.2),"") -> 6.3 | M73: =IFERROR(WeightToLoseGain-L73,"") -> 8.70 | N73: =IFERROR(IF(C72<>"",M73/(WeightToLoseGain),""),"") -> 58%
C74: 2013-04-23 | E74: 63 | F74: 141.2 | G74: =IFERROR(RunningBMR,"") -> 1415 | H74: =IFERROR(IF(L73>0,G73*ActivityFactor+IF(WeightGoal="Maintain",0,IF(WeightGoal="Decrease",-500,IF(WeightGoal="Increase",500))),""),"") -> 1694 | I74: =IFERROR(G74*(ActivityFactor),"") -> 2193 | J74: =IFERROR(IF(WeightGoal="Increase",H74-I74,I74-H74),"") -> 499 | K74: 21560 | L74: =IFERROR(IF(Standard,K74/CalsPerPound,K74/CalsPerPound/2.2),"") -> 6.2 | M74: =IFERROR(WeightToLoseGain-L74,"") -> 8.84 | N74: =IFERROR(IF(C73<>"",M74/(WeightToLoseGain),""),"") -> 59%
C75: 2013-04-24 | D75: 10 | E75: 64 | F75: 141.0 | G75: =IFERROR(RunningBMR,"") -> 1414 | H75: =IFERROR(IF(L74>0,G74*ActivityFactor+IF(WeightGoal="Maintain",0,IF(WeightGoal="Decrease",-500,IF(WeightGoal="Increase",500))),""),"") -> 1693 | I75: =IFERROR(G75*(ActivityFactor),"") -> 2192 | J75: =IFERROR(IF(WeightGoal="Increase",H75-I75,I75-H75),"") -> 499 | K75: 21061 | L75: =IFERROR(IF(Standard,K75/CalsPerPound,K75/CalsPerPound/2.2),"") -> 6.0 | M75: =IFERROR(WeightToLoseGain-L75,"") -> 8.98 | N75: =IFERROR(IF(C74<>"",M75/(WeightToLoseGain),""),"") -> 60%
C76: 2013-04-25 | E76: 65 | F76: 140.9 | G76: =IFERROR(RunningBMR,"") -> 1414 | H76: =IFERROR(IF(L75>0,G75*ActivityFactor+IF(WeightGoal="Maintain",0,IF(WeightGoal="Decrease",-500,IF(WeightGoal="Increase",500))),""),"") -> 1692 | I76: =IFERROR(G76*(ActivityFactor),"") -> 2191 | J76: =IFERROR(IF(WeightGoal="Increase",H76-I76,I76-H76),"") -> 499 | K76: 20562 | L76: =IFERROR(IF(Standard,K76/CalsPerPound,K76/CalsPerPound/2.2),"") -> 5.9 | M76: =IFERROR(WeightToLoseGain-L76,"") -> 9.13 | N76: =IFERROR(IF(C75<>"",M76/(WeightToLoseGain),""),"") -> 61%
C77: =IFERROR(IF(L76>0,C76+1,""),"") -> 2013-04-26 | E77: =IFERROR(IF(L76>0,E76+1,""),"") -> 66 | F77: =IFERROR(IF($E77<>"",F76-(J76/CalsPerPound),""),"") -> 140.7 | G77: =IFERROR(RunningBMR,"") -> 1413 | H77: =IFERROR(IF(L76>0,G76*ActivityFactor+IF(WeightGoal="Maintain",0,IF(WeightGoal="Decrease",-500,IF(WeightGoal="Increase",500))),""),"") -> 1691 | I77: =IFERROR(G77*(ActivityFactor),"") -> 2190 | J77: =IFERROR(IF(WeightGoal="Increase",H77-I77,I77-H77),"") -> 499 | K77: 20062 | L77: =IFERROR(IF(Standard,K77/CalsPerPound,K77/CalsPerPound/2.2),"") -> 5.7 | M77: =IFERROR(WeightToLoseGain-L77,"") -> 9.27 | N77: =IFERROR(IF(C76<>"",M77/(WeightToLoseGain),""),"") -> 62%
C78: 2013-04-27 | D78: =IFERROR(IF(E78<>"",IF(MOD(E78,7)=1,(E77/7)+1,""),""),"") ->  | E78: 67 | F78: 140.6 | G78: =IFERROR(RunningBMR,"") -> 1412 | H78: =IFERROR(IF(L77>0,G77*ActivityFactor+IF(WeightGoal="Maintain",0,IF(WeightGoal="Decrease",-500,IF(WeightGoal="Increase",500))),""),"") -> 1690 | I78: =IFERROR(G78*(ActivityFactor),"") -> 2189 | J78: =IFERROR(IF(WeightGoal="Increase",H78-I78,I78-H78),"") -> 499 | K78: =IFERROR(K77-J78,"") -> 19563 | L78: =IFERROR(IF(Standard,K78/CalsPerPound,K78/CalsPerPound/2.2),"") -> 5.6 | M78: =IFERROR(WeightToLoseGain-L78,"") -> 9.41 | N78: =IFERROR(IF(C77<>"",M78/(WeightToLoseGain),""),"") -> 63%
C79: 2013-04-28 | E79: 68 | F79: 140.4 | G79: =IFERROR(RunningBMR,"") -> 1412 | H79: =IFERROR(IF(L78>0,G78*ActivityFactor+IF(WeightGoal="Maintain",0,IF(WeightGoal="Decrease",-500,IF(WeightGoal="Increase",500))),""),"") -> 1689 | I79: =IFERROR(G79*(ActivityFactor),"") -> 2188 | J79: =IFERROR(IF(WeightGoal="Increase",H79-I79,I79-H79),"") -> 499 | K79: 19064 | L79: =IFERROR(IF(Standard,K79/CalsPerPound,K79/CalsPerPound/2.2),"") -> 5.4 | M79: =IFERROR(WeightToLoseGain-L79,"") -> 9.55 | N79: =IFERROR(IF(C78<>"",M79/(WeightToLoseGain),""),"") -> 64%
C80: 2013-04-29 | E80: 69 | F80: 140.3 | G80: =IFERROR(RunningBMR,"") -> 1411 | H80: =IFERROR(IF(L79>0,G79*ActivityFactor+IF(WeightGoal="Maintain",0,IF(WeightGoal="Decrease",-500,IF(WeightGoal="Increase",500))),""),"") -> 1688 | I80: =IFERROR(G80*(ActivityFactor),"") -> 2187 | J80: =IFERROR(IF(WeightGoal="Increase",H80-I80,I80-H80),"") -> 499 | K80: 18565 | L80: =IFERROR(IF(Standard,K80/CalsPerPound,K80/CalsPerPound/2.2),"") -> 5.3 | M80: =IFERROR(WeightToLoseGain-L80,"") -> 9.70 | N80: =IFERROR(IF(C79<>"",M80/(WeightToLoseGain),""),"") -> 65%
C81: 2013-04-30 | E81: 70 | F81: 140.2 | G81: =IFERROR(RunningBMR,"") -> 1410 | H81: =IFERROR(IF(L80>0,G80*ActivityFactor+IF(WeightGoal="Maintain",0,IF(WeightGoal="Decrease",-500,IF(WeightGoal="Increase",500))),""),"") -> 1687 | I81: =IFERROR(G81*(ActivityFactor),"") -> 2186 | J81: =IFERROR(IF(WeightGoal="Increase",H81-I81,I81-H81),"") -> 499 | K81: 18066 | L81: =IFERROR(IF(Standard,K81/CalsPerPound,K81/CalsPerPound/2.2),"") -> 5.2 | M81: =IFERROR(WeightToLoseGain-L81,"") -> 9.84 | N81: =IFERROR(IF(C80<>"",M81/(WeightToLoseGain),""),"") -> 66%
C82: 2013-05-01 | D82: 11 | E82: 71 | F82: 140.0 | G82: =IFERROR(RunningBMR,"") -> 1410 | H82: =IFERROR(IF(L81>0,G81*ActivityFactor+IF(WeightGoal="Maintain",0,IF(WeightGoal="Decrease",-500,IF(WeightGoal="Increase",500))),""),"") -> 1686 | I82: =IFERROR(G82*(ActivityFactor),"") -> 2185 | J82: =IFERROR(IF(WeightGoal="Increase",H82-I82,I82-H82),"") -> 499 | K82: 17567 | L82: =IFERROR(IF(Standard,K82/CalsPerPound,K82/CalsPerPound/2.2),"") -> 5.0 | M82: =IFERROR(WeightToLoseGain-L82,"") -> 9.98 | N82: =IFERROR(IF(C81<>"",M82/(WeightToLoseGain),""),"") -> 67%
C83: 2013-05-02 | E83: 72 | F83: 139.9 | G83: =IFERROR(RunningBMR,"") -> 1409 | H83: =IFERROR(IF(L82>0,G82*ActivityFactor+IF(WeightGoal="Maintain",0,IF(WeightGoal="Decrease",-500,IF(WeightGoal="Increase",500))),""),"") -> 1685 | I83: =IFERROR(G83*(ActivityFactor),"") -> 2184 | J83: =IFERROR(IF(WeightGoal="Increase",H83-I83,I83-H83),"") -> 499 | K83: 17068 | L83: =IFERROR(IF(Standard,K83/CalsPerPound,K83/CalsPerPound/2.2),"") -> 4.9 | M83: =IFERROR(WeightToLoseGain-L83,"") -> 10.12 | N83: =IFERROR(IF(C82<>"",M83/(WeightToLoseGain),""),"") -> 67%
C84: 2013-05-03 | E84: 73 | F84: 139.7 | G84: =IFERROR(RunningBMR,"") -> 1409 | H84: =IFERROR(IF(L83>0,G83*ActivityFactor+IF(WeightGoal="Maintain",0,IF(WeightGoal="Decrease",-500,IF(WeightGoal="Increase",500))),""),"") -> 1684 | I84: =IFERROR(G84*(ActivityFactor),"") -> 2183 | J84: =IFERROR(IF(WeightGoal="Increase",H84-I84,I84-H84),"") -> 499 | K84: 16569 | L84: =IFERROR(IF(Standard,K84/CalsPerPound,K84/CalsPerPound/2.2),"") -> 4.7 | M84: =IFERROR(WeightToLoseGain-L84,"") -> 10.27 | N84: =IFERROR(IF(C83<>"",M84/(WeightToLoseGain),""),"") -> 68%
C85: 2013-05-04 | E85: 74 | F85: 139.6 | G85: =IFERROR(RunningBMR,"") -> 1408 | H85: =IFERROR(IF(L84>0,G84*ActivityFactor+IF(WeightGoal="Maintain",0,IF(WeightGoal="Decrease",-500,IF(WeightGoal="Increase",500))),""),"") -> 1683 | I85: =IFERROR(G85*(ActivityFactor),"") -> 2182 | J85: =IFERROR(IF(WeightGoal="Increase",H85-I85,I85-H85),"") -> 499 | K85: 16070 | L85: =IFERROR(IF(Standard,K85/CalsPerPound,K85/CalsPerPound/2.2),"") -> 4.6 | M85: =IFERROR(WeightToLoseGain-L85,"") -> 10.41 | N85: =IFERROR(IF(C84<>"",M85/(WeightToLoseGain),""),"") -> 69%
C86: 2013-05-05 | E86: 75 | F86: 139.4 | G86: =IFERROR(RunningBMR,"") -> 1407 | H86: =IFERROR(IF(L85>0,G85*ActivityFactor+IF(WeightGoal="Maintain",0,IF(WeightGoal="Decrease",-500,IF(WeightGoal="Increase",500))),""),"") -> 1682 | I86: =IFERROR(G86*(ActivityFactor),"") -> 2181 | J86: =IFERROR(IF(WeightGoal="Increase",H86-I86,I86-H86),"") -> 499 | K86: 15571 | L86: =IFERROR(IF(Standard,K86/CalsPerPound,K86/CalsPerPound/2.2),"") -> 4.4 | M86: =IFERROR(WeightToLoseGain-L86,"") -> 10.55 | N86: =IFERROR(IF(C85<>"",M86/(WeightToLoseGain),""),"") -> 70%
C87: 2013-05-06 | E87: 76 | F87: 139.3 | G87: =IFERROR(RunningBMR,"") -> 1407 | H87: =IFERROR(IF(L86>0,G86*ActivityFactor+IF(WeightGoal="Maintain",0,IF(WeightGoal="Decrease",-500,IF(WeightGoal="Increase",500))),""),"") -> 1681 | I87: =IFERROR(G87*(ActivityFactor),"") -> 2180 | J87: =IFERROR(IF(WeightGoal="Increase",H87-I87,I87-H87),"") -> 499 | K87: 15072 | L87: =IFERROR(IF(Standard,K87/CalsPerPound,K87/CalsPerPound/2.2),"") -> 4.3 | M87: =IFERROR(WeightToLoseGain-L87,"") -> 10.69 | N87: =IFERROR(IF(C86<>"",M87/(WeightToLoseGain),""),"") -> 71%
C88: 2013-05-07 | E88: 77 | F88: 139.2 | G88: =IFERROR(RunningBMR,"") -> 1406 | H88: =IFERROR(IF(L87>0,G87*ActivityFactor+IF(WeightGoal="Maintain",0,IF(WeightGoal="Decrease",-500,IF(WeightGoal="Increase",500))),""),"") -> 1680 | I88: =IFERROR(G88*(ActivityFactor),"") -> 2179 | J88: =IFERROR(IF(WeightGoal="Increase",H88-I88,I88-H88),"") -> 499 | K88: 14573 | L88: =IFERROR(IF(Standard,K88/CalsPerPound,K88/CalsPerPound/2.2),"") -> 4.2 | M88: =IFERROR(WeightToLoseGain-L88,"") -> 10.84 | N88: =IFERROR(IF(C87<>"",M88/(WeightToLoseGain),""),"") -> 72%
C89: 2013-05-08 | D89: 12 | E89: 78 | F89: 139.0 | G89: =IFERROR(RunningBMR,"") -> 1405 | H89: =IFERROR(IF(L88>0,G88*ActivityFactor+IF(WeightGoal="Maintain",0,IF(WeightGoal="Decrease",-500,IF(WeightGoal="Increase",500))),""),"") -> 1679 | I89: =IFERROR(G89*(ActivityFactor),"") -> 2178 | J89: =IFERROR(IF(WeightGoal="Increase",H89-I89,I89-H89),"") -> 499 | K89: 14074 | L89: =IFERROR(IF(Standard,K89/CalsPerPound,K89/CalsPerPound/2.2),"") -> 4.0 | M89: =IFERROR(WeightToLoseGain-L89,"") -> 10.98 | N89: =IFERROR(IF(C88<>"",M89/(WeightToLoseGain),""),"") -> 73%
C90: 2013-05-09 | E90: 79 | F90: 138.9 | G90: =IFERROR(RunningBMR,"") -> 1405 | H90: =IFERROR(IF(L89>0,G89*ActivityFactor+IF(WeightGoal="Maintain",0,IF(WeightGoal="Decrease",-500,IF(WeightGoal="Increase",500))),""),"") -> 1678 | I90: =IFERROR(G90*(ActivityFactor),"") -> 2177 | J90: =IFERROR(IF(WeightGoal="Increase",H90-I90,I90-H90),"") -> 499 | K90: 13575 | L90: =IFERROR(IF(Standard,K90/CalsPerPound,K90/CalsPerPound/2.2),"") -> 3.9 | M90: =IFERROR(WeightToLoseGain-L90,"") -> 11.12 | N90: =IFERROR(IF(C89<>"",M90/(WeightToLoseGain),""),"") -> 74%
C91: 2013-05-10 | E91: 80 | F91: 138.7 | G91: =IFERROR(RunningBMR,"") -> 1404 | H91: =IFERROR(IF(L90>0,G90*ActivityFactor+IF(WeightGoal="Maintain",0,IF(WeightGoal="Decrease",-500,IF(WeightGoal="Increase",500))),""),"") -> 1677 | I91: =IFERROR(G91*(ActivityFactor),"") -> 2177 | J91: =IFERROR(IF(WeightGoal="Increase",H91-I91,I91-H91),"") -> 499 | K91: 13076 | L91: =IFERROR(IF(Standard,K91/CalsPerPound,K91/CalsPerPound/2.2),"") -> 3.7 | M91: =IFERROR(WeightToLoseGain-L91,"") -> 11.26 | N91: =IFERROR(IF(C90<>"",M91/(WeightToLoseGain),""),"") -> 75%
C92: 2013-05-11 | E92: 81 | F92: 138.6 | G92: =IFERROR(RunningBMR,"") -> 1404 | H92: =IFERROR(IF(L91>0,G91*ActivityFactor+IF(WeightGoal="Maintain",0,IF(WeightGoal="Decrease",-500,IF(WeightGoal="Increase",500))),""),"") -> 1677 | I92: =IFERROR(G92*(ActivityFactor),"") -> 2176 | J92: =IFERROR(IF(WeightGoal="Increase",H92-I92,I92-H92),"") -> 499 | K92: 12577 | L92: =IFERROR(IF(Standard,K92/CalsPerPound,K92/CalsPerPound/2.2),"") -> 3.6 | M92: =IFERROR(WeightToLoseGain-L92,"") -> 11.41 | N92: =IFERROR(IF(C91<>"",M92/(WeightToLoseGain),""),"") -> 76%
C93: 2013-05-12 | E93: 82 | F93: 138.5 | G93: =IFERROR(RunningBMR,"") -> 1403 | H93: =IFERROR(IF(L92>0,G92*ActivityFactor+IF(WeightGoal="Maintain",0,IF(WeightGoal="Decrease",-500,IF(WeightGoal="Increase",500))),""),"") -> 1676 | I93: =IFERROR(G93*(ActivityFactor),"") -> 2175 | J93: =IFERROR(IF(WeightGoal="Increase",H93-I93,I93-H93),"") -> 499 | K93: 12078 | L93: =IFERROR(IF(Standard,K93/CalsPerPound,K93/CalsPerPound/2.2),"") -> 3.5 | M93: =IFERROR(WeightToLoseGain-L93,"") -> 11.55 | N93: =IFERROR(IF(C92<>"",M93/(WeightToLoseGain),""),"") -> 77%
C94: 2013-05-13 | E94: 83 | F94: 138.3 | G94: =IFERROR(RunningBMR,"") -> 1402 | H94: =IFERROR(IF(L93>0,G93*ActivityFactor+IF(WeightGoal="Maintain",0,IF(WeightGoal="Decrease",-500,IF(WeightGoal="Increase",500))),""),"") -> 1675 | I94: =IFERROR(G94*(ActivityFactor),"") -> 2174 | J94: =IFERROR(IF(WeightGoal="Increase",H94-I94,I94-H94),"") -> 499 | K94: 11579 | L94: =IFERROR(IF(Standard,K94/CalsPerPound,K94/CalsPerPound/2.2),"") -> 3.3 | M94: =IFERROR(WeightToLoseGain-L94,"") -> 11.69 | N94: =IFERROR(IF(C93<>"",M94/(WeightToLoseGain),""),"") -> 78%
C95: 2013-05-14 | E95: 84 | F95: 138.2 | G95: =IFERROR(RunningBMR,"") -> 1402 | H95: =IFERROR(IF(L94>0,G94*ActivityFactor+IF(WeightGoal="Maintain",0,IF(WeightGoal="Decrease",-500,IF(WeightGoal="Increase",500))),""),"") -> 1674 | I95: =IFERROR(G95*(ActivityFactor),"") -> 2173 | J95: =IFERROR(IF(WeightGoal="Increase",H95-I95,I95-H95),"") -> 499 | K95: 11080 | L95: =IFERROR(IF(Standard,K95/CalsPerPound,K95/CalsPerPound/2.2),"") -> 3.2 | M95: =IFERROR(WeightToLoseGain-L95,"") -> 11.83 | N95: =IFERROR(IF(C94<>"",M95/(WeightToLoseGain),""),"") -> 79%
C96: 2013-05-15 | D96: 13 | E96: 85 | F96: 138.0 | G96: =IFERROR(RunningBMR,"") -> 1401 | H96: =IFERROR(IF(L95>0,G95*ActivityFactor+IF(WeightGoal="Maintain",0,IF(WeightGoal="Decrease",-500,IF(WeightGoal="Increase",500))),""),"") -> 1673 | I96: =IFERROR(G96*(ActivityFactor),"") -> 2172 | J96: =IFERROR(IF(WeightGoal="Increase",H96-I96,I96-H96),"") -> 499 | K96: 10581 | L96: =IFERROR(IF(Standard,K96/CalsPerPound,K96/CalsPerPound/2.2),"") -> 3.0 | M96: =IFERROR(WeightToLoseGain-L96,"") -> 11.98 | N96: =IFERROR(IF(C95<>"",M96/(WeightToLoseGain),""),"") -> 80%
C97: 2013-05-16 | E97: 86 | F97: 137.9 | G97: =IFERROR(RunningBMR,"") -> 1400 | H97: =IFERROR(IF(L96>0,G96*ActivityFactor+IF(WeightGoal="Maintain",0,IF(WeightGoal="Decrease",-500,IF(WeightGoal="Increase",500))),""),"") -> 1672 | I97: =IFERROR(G97*(ActivityFactor),"") -> 2171 | J97: =IFERROR(IF(WeightGoal="Increase",H97-I97,I97-H97),"") -> 499 | K97: 10082 | L97: =IFERROR(IF(Standard,K97/CalsPerPound,K97/CalsPerPound/2.2),"") -> 2.9 | M97: =IFERROR(WeightToLoseGain-L97,"") -> 12.12 | N97: =IFERROR(IF(C96<>"",M97/(WeightToLoseGain),""),"") -> 81%
C98: 2013-05-17 | E98: 87 | F98: 137.7 | G98: =IFERROR(RunningBMR,"") -> 1400 | H98: =IFERROR(IF(L97>0,G97*ActivityFactor+IF(WeightGoal="Maintain",0,IF(WeightGoal="Decrease",-500,IF(WeightGoal="Increase",500))),""),"") -> 1671 | I98: =IFERROR(G98*(ActivityFactor),"") -> 2170 | J98: =IFERROR(IF(WeightGoal="Increase",H98-I98,I98-H98),"") -> 499 | K98: 9583 | L98: =IFERROR(IF(Standard,K98/CalsPerPound,K98/CalsPerPound/2.2),"") -> 2.7 | M98: =IFERROR(WeightToLoseGain-L98,"") -> 12.26 | N98: =IFERROR(IF(C97<>"",M98/(WeightToLoseGain),""),"") -> 82%
C99: 2013-05-18 | E99: 88 | F99: 137.6 | G99: =IFERROR(RunningBMR,"") -> 1399 | H99: =IFERROR(IF(L98>0,G98*ActivityFactor+IF(WeightGoal="Maintain",0,IF(WeightGoal="Decrease",-500,IF(WeightGoal="Increase",500))),""),"") -> 1670 | I99: =IFERROR(G99*(ActivityFactor),"") -> 2169 | J99: =IFERROR(IF(WeightGoal="Increase",H99-I99,I99-H99),"") -> 499 | K99: 9084 | L99: =IFERROR(IF(Standard,K99/CalsPerPound,K99/CalsPerPound/2.2),"") -> 2.6 | M99: =IFERROR(WeightToLoseGain-L99,"") -> 12.40 | N99: =IFERROR(IF(C98<>"",M99/(WeightToLoseGain),""),"") -> 83%
C100: 2013-05-19 | E100: 89 | F100: 137.5 | G100: =IFERROR(RunningBMR,"") -> 1399 | H100: =IFERROR(IF(L99>0,G99*ActivityFactor+IF(WeightGoal="Maintain",0,IF(WeightGoal="Decrease",-500,IF(WeightGoal="Increase",500))),""),"") -> 1669 | I100: =IFERROR(G100*(ActivityFactor),"") -> 2168 | J100: =IFERROR(IF(WeightGoal="Increase",H100-I100,I100-H100),"") -> 499 | K100: 8585 | L100: =IFERROR(IF(Standard,K100/CalsPerPound,K100/CalsPerPound/2.2),"") -> 2.5 | M100: =IFERROR(WeightToLoseGain-L100,"") -> 12.55 | N100: =IFERROR(IF(C99<>"",M100/(WeightToLoseGain),""),"") -> 84%
C101: 2013-05-20 | E101: 90 | F101: 137.3 | G101: =IFERROR(RunningBMR,"") -> 1398 | H101: =IFERROR(IF(L100>0,G100*ActivityFactor+IF(WeightGoal="Maintain",0,IF(WeightGoal="Decrease",-500,IF(WeightGoal="Increase",500))),""),"") -> 1668 | I101: =IFERROR(G101*(ActivityFactor),"") -> 2167 | J101: =IFERROR(IF(WeightGoal="Increase",H101-I101,I101-H101),"") -> 499 | K101: 8086 | L101: =IFERROR(IF(Standard,K101/CalsPerPound,K101/CalsPerPound/2.2),"") -> 2.3 | M101: =IFERROR(WeightToLoseGain-L101,"") -> 12.69 | N101: =IFERROR(IF(C100<>"",M101/(WeightToLoseGain),""),"") -> 85%
C102: 2013-05-21 | E102: 91 | F102: 137.2 | G102: =IFERROR(RunningBMR,"") -> 1397 | H102: =IFERROR(IF(L101>0,G101*ActivityFactor+IF(WeightGoal="Maintain",0,IF(WeightGoal="Decrease",-500,IF(WeightGoal="Increase",500))),""),"") -> 1667 | I102: =IFERROR(G102*(ActivityFactor),"") -> 2166 | J102: =IFERROR(IF(WeightGoal="Increase",H102-I102,I102-H102),"") -> 499 | K102: 7587 | L102: =IFERROR(IF(Standard,K102/CalsPerPound,K102/CalsPerPound/2.2),"") -> 2.2 | M102: =IFERROR(WeightToLoseGain-L102,"") -> 12.83 | N102: =IFERROR(IF(C101<>"",M102/(WeightToLoseGain),""),"") -> 86%
C103: 2013-05-22 | D103: 14 | E103: 92 | F103: 137.0 | G103: =IFERROR(RunningBMR,"") -> 1397 | H103: =IFERROR(IF(L102>0,G102*ActivityFactor+IF(WeightGoal="Maintain",0,IF(WeightGoal="Decrease",-500,IF(WeightGoal="Increase",500))),""),"") -> 1666 | I103: =IFERROR(G103*(ActivityFactor),"") -> 2165 | J103: =IFERROR(IF(WeightGoal="Increase",H103-I103,I103-H103),"") -> 499 | K103: 7087 | L103: =IFERROR(IF(Standard,K103/CalsPerPound,K103/CalsPerPound/2.2),"") -> 2.0 | M103: =IFERROR(WeightToLoseGain-L103,"") -> 12.98 | N103: =IFERROR(IF(C102<>"",M103/(WeightToLoseGain),""),"") -> 87%
C104: 2013-05-23 | E104: 93 | F104: 136.9 | G104: =IFERROR(RunningBMR,"") -> 1396 | H104: =IFERROR(IF(L103>0,G103*ActivityFactor+IF(WeightGoal="Maintain",0,IF(WeightGoal="Decrease",-500,IF(WeightGoal="Increase",500))),""),"") -> 1665 | I104: =IFERROR(G104*(ActivityFactor),"") -> 2164 | J104: =IFERROR(IF(WeightGoal="Increase",H104-I104,I104-H104),"") -> 499 | K104: 6588 | L104: =IFERROR(IF(Standard,K104/CalsPerPound,K104/CalsPerPound/2.2),"") -> 1.9 | M104: =IFERROR(WeightToLoseGain-L104,"") -> 13.12 | N104: =IFERROR(IF(C103<>"",M104/(WeightToLoseGain),""),"") -> 87%
C105: 2013-05-24 | E105: 94 | F105: 136.7 | G105: =IFERROR(RunningBMR,"") -> 1396 | H105: =IFERROR(IF(L104>0,G104*ActivityFactor+IF(WeightGoal="Maintain",0,IF(WeightGoal="Decrease",-500,IF(WeightGoal="Increase",500))),""),"") -> 1664 | I105: =IFERROR(G105*(ActivityFactor),"") -> 2163 | J105: =IFERROR(IF(WeightGoal="Increase",H105-I105,I105-H105),"") -> 499 | K105: 6089 | L105: =IFERROR(IF(Standard,K105/CalsPerPound,K105/CalsPerPound/2.2),"") -> 1.7 | M105: =IFERROR(WeightToLoseGain-L105,"") -> 13.26 | N105: =IFERROR(IF(C104<>"",M105/(WeightToLoseGain),""),"") -> 88%
C106: 2013-05-25 | E106: 95 | F106: 136.6 | G106: =IFERROR(RunningBMR,"") -> 1395 | H106: =IFERROR(IF(L105>0,G105*ActivityFactor+IF(WeightGoal="Maintain",0,IF(WeightGoal="Decrease",-500,IF(WeightGoal="Increase",500))),""),"") -> 1663 | I106: =IFERROR(G106*(ActivityFactor),"") -> 2162 | J106: =IFERROR(IF(WeightGoal="Increase",H106-I106,I106-H106),"") -> 499 | K106: 5590 | L106: =IFERROR(IF(Standard,K106/CalsPerPound,K106/CalsPerPound/2.2),"") -> 1.6 | M106: =IFERROR(WeightToLoseGain-L106,"") -> 13.40 | N106: =IFERROR(IF(C105<>"",M106/(WeightToLoseGain),""),"") -> 89%
C107: 2013-05-26 | E107: 96 | F107: 136.5 | G107: =IFERROR(RunningBMR,"") -> 1394 | H107: =IFERROR(IF(L106>0,G106*ActivityFactor+IF(WeightGoal="Maintain",0,IF(WeightGoal="Decrease",-500,IF(WeightGoal="Increase",500))),""),"") -> 1662 | I107: =IFERROR(G107*(ActivityFactor),"") -> 2161 | J107: =IFERROR(IF(WeightGoal="Increase",H107-I107,I107-H107),"") -> 499 | K107: 5091 | L107: =IFERROR(IF(Standard,K107/CalsPerPound,K107/CalsPerPound/2.2),"") -> 1.5 | M107: =IFERROR(WeightToLoseGain-L107,"") -> 13.55 | N107: =IFERROR(IF(C106<>"",M107/(WeightToLoseGain),""),"") -> 90%
C108: 2013-05-27 | E108: 97 | F108: 136.3 | G108: =IFERROR(RunningBMR,"") -> 1394 | H108: =IFERROR(IF(L107>0,G107*ActivityFactor+IF(WeightGoal="Maintain",0,IF(WeightGoal="Decrease",-500,IF(WeightGoal="Increase",500))),""),"") -> 1661 | I108: =IFERROR(G108*(ActivityFactor),"") -> 2160 | J108: =IFERROR(IF(WeightGoal="Increase",H108-I108,I108-H108),"") -> 499 | K108: 4592 | L108: =IFERROR(IF(Standard,K108/CalsPerPound,K108/CalsPerPound/2.2),"") -> 1.3 | M108: =IFERROR(WeightToLoseGain-L108,"") -> 13.69 | N108: =IFERROR(IF(C107<>"",M108/(WeightToLoseGain),""),"") -> 91%
C109: 2013-05-28 | E109: 98 | F109: 136.2 | G109: =IFERROR(RunningBMR,"") -> 1393 | H109: =IFERROR(IF(L108>0,G108*ActivityFactor+IF(WeightGoal="Maintain",0,IF(WeightGoal="Decrease",-500,IF(WeightGoal="Increase",500))),""),"") -> 1660 | I109: =IFERROR(G109*(ActivityFactor),"") -> 2159 | J109: =IFERROR(IF(WeightGoal="Increase",H109-I109,I109-H109),"") -> 499 | K109: 4093 | L109: =IFERROR(IF(Standard,K109/CalsPerPound,K109/CalsPerPound/2.2),"") -> 1.2 | M109: =IFERROR(WeightToLoseGain-L109,"") -> 13.83 | N109: =IFERROR(IF(C108<>"",M109/(WeightToLoseGain),""),"") -> 92%
C110: 2013-05-29 | D110: 15 | E110: 99 | F110: 136.0 | G110: =IFERROR(RunningBMR,"") -> 1392 | H110: =IFERROR(IF(L109>0,G109*ActivityFactor+IF(WeightGoal="Maintain",0,IF(WeightGoal="Decrease",-500,IF(WeightGoal="Increase",500))),""),"") -> 1659 | I110: =IFERROR(G110*(ActivityFactor),"") -> 2158 | J110: =IFERROR(IF(WeightGoal="Increase",H110-I110,I110-H110),"") -> 499 | K110: 3594 | L110: =IFERROR(IF(Standard,K110/CalsPerPound,K110/CalsPerPound/2.2),"") -> 1.0 | M110: =IFERROR(WeightToLoseGain-L110,"") -> 13.97 | N110: =IFERROR(IF(C109<>"",M110/(WeightToLoseGain),""),"") -> 93%
C111: 2013-05-30 | E111: 100 | F111: 135.9 | G111: =IFERROR(RunningBMR,"") -> 1392 | H111: =IFERROR(IF(L110>0,G110*ActivityFactor+IF(WeightGoal="Maintain",0,IF(WeightGoal="Decrease",-500,IF(WeightGoal="Increase",500))),""),"") -> 1658 | I111: =IFERROR(G111*(ActivityFactor),"") -> 2157 | J111: =IFERROR(IF(WeightGoal="Increase",H111-I111,I111-H111),"") -> 499 | K111: 3095 | L111: =IFERROR(IF(Standard,K111/CalsPerPound,K111/CalsPerPound/2.2),"") -> 0.9 | M111: =IFERROR(WeightToLoseGain-L111,"") -> 14.12 | N111: =IFERROR(IF(C110<>"",M111/(WeightToLoseGain),""),"") -> 94%
C112: 2013-05-31 | E112: 101 | F112: 135.7 | G112: =IFERROR(RunningBMR,"") -> 1391 | H112: =IFERROR(IF(L111>0,G111*ActivityFactor+IF(WeightGoal="Maintain",0,IF(WeightGoal="Decrease",-500,IF(WeightGoal="Increase",500))),""),"") -> 1657 | I112: =IFERROR(G112*(ActivityFactor),"") -> 2156 | J112: =IFERROR(IF(WeightGoal="Increase",H112-I112,I112-H112),"") -> 499 | K112: 2596 | L112: =IFERROR(IF(Standard,K112/CalsPerPound,K112/CalsPerPound/2.2),"") -> 0.7 | M112: =IFERROR(WeightToLoseGain-L112,"") -> 14.26 | N112: =IFERROR(IF(C111<>"",M112/(WeightToLoseGain),""),"") -> 95%
C113: 2013-06-01 | E113: 102 | F113: 135.6 | G113: =IFERROR(RunningBMR,"") -> 1391 | H113: =IFERROR(IF(L112>0,G112*ActivityFactor+IF(WeightGoal="Maintain",0,IF(WeightGoal="Decrease",-500,IF(WeightGoal="Increase",500))),""),"") -> 1656 | I113: =IFERROR(G113*(ActivityFactor),"") -> 2155 | J113: =IFERROR(IF(WeightGoal="Increase",H113-I113,I113-H113),"") -> 499 | K113: 2097 | L113: =IFERROR(IF(Standard,K113/CalsPerPound,K113/CalsPerPound/2.2),"") -> 0.6 | M113: =IFERROR(WeightToLoseGain-L113,"") -> 14.40 | N113: =IFERROR(IF(C112<>"",M113/(WeightToLoseGain),""),"") -> 96%
C114: 2013-06-02 | E114: 103 | F114: 135.5 | G114: =IFERROR(RunningBMR,"") -> 1390 | H114: =IFERROR(IF(L113>0,G113*ActivityFactor+IF(WeightGoal="Maintain",0,IF(WeightGoal="Decrease",-500,IF(WeightGoal="Increase",500))),""),"") -> 1655 | I114: =IFERROR(G114*(ActivityFactor),"") -> 2154 | J114: =IFERROR(IF(WeightGoal="Increase",H114-I114,I114-H114),"") -> 499 | K114: 1598 | L114: =IFERROR(IF(Standard,K114/CalsPerPound,K114/CalsPerPound/2.2),"") -> 0.5 | M114: =IFERROR(WeightToLoseGain-L114,"") -> 14.54 | N114: =IFERROR(IF(C113<>"",M114/(WeightToLoseGain),""),"") -> 97%
C115: 2013-06-03 | E115: 104 | F115: 135.3 | G115: =IFERROR(RunningBMR,"") -> 1389 | H115: =IFERROR(IF(L114>0,G114*ActivityFactor+IF(WeightGoal="Maintain",0,IF(WeightGoal="Decrease",-500,IF(WeightGoal="Increase",500))),""),"") -> 1654 | I115: =IFERROR(G115*(ActivityFactor),"") -> 2153 | J115: =IFERROR(IF(WeightGoal="Increase",H115-I115,I115-H115),"") -> 499 | K115: 1099 | L115: =IFERROR(IF(Standard,K115/CalsPerPound,K115/CalsPerPound/2.2),"") -> 0.3 | M115: =IFERROR(WeightToLoseGain-L115,"") -> 14.69 | N115: =IFERROR(IF(C114<>"",M115/(WeightToLoseGain),""),"") -> 98%
C116: 2013-06-04 | E116: 105 | F116: 135.2 | G116: =IFERROR(RunningBMR,"") -> 1389 | H116: =IFERROR(IF(L115>0,G115*ActivityFactor+IF(WeightGoal="Maintain",0,IF(WeightGoal="Decrease",-500,IF(WeightGoal="Increase",500))),""),"") -> 1653 | I116: =IFERROR(G116*(ActivityFactor),"") -> 2152 | J116: =IFERROR(IF(WeightGoal="Increase",H116-I116,I116-H116),"") -> 499 | K116: 600 | L116: =IFERROR(IF(Standard,K116/CalsPerPound,K116/CalsPerPound/2.2),"") -> 0.2 | M116: =IFERROR(WeightToLoseGain-L116,"") -> 14.83 | N116: =IFERROR(IF(C115<>"",M116/(WeightToLoseGain),""),"") -> 99%
C117: 2013-06-05 | D117: 16 | E117: 106 | F117: 135.0 | G117: =IFERROR(RunningBMR,"") -> 1388 | H117: =IFERROR(IF(L116>0,G116*ActivityFactor+IF(WeightGoal="Maintain",0,IF(WeightGoal="Decrease",-500,IF(WeightGoal="Increase",500))),""),"") -> 1652 | I117: =IFERROR(G117*(ActivityFactor),"") -> 2152 | J117: =IFERROR(IF(WeightGoal="Increase",H117-I117,I117-H117),"") -> 499 | K117: 101 | L117: =IFERROR(IF(Standard,K117/CalsPerPound,K117/CalsPerPound/2.2),"") -> 0.0 | M117: =IFERROR(WeightToLoseGain-L117,"") -> 14.97 | N117: =IFERROR(IF(C116<>"",M117/(WeightToLoseGain),""),"") -> 100%
C118: 2013-06-06 | E118: 107 | F118: 134.9 | G118: =IFERROR(RunningBMR,"") -> 1387 | H118: =IFERROR(IF(L117>0,G117*ActivityFactor+IF(WeightGoal="Maintain",0,IF(WeightGoal="Decrease",-500,IF(WeightGoal="Increase",500))),""),"") -> 1652 | I118: =IFERROR(G118*(ActivityFactor),"") -> 2151 | J118: =IFERROR(IF(WeightGoal="Increase",H118-I118,I118-H118),"") -> 499 | K118: (398) | L118: =IFERROR(IF(Standard,K118/CalsPerPound,K118/CalsPerPound/2.2),"") -> (0.1) | M118: =IFERROR(WeightToLoseGain-L118,"") -> 15.11 | N118: =IFERROR(IF(C117<>"",M118/(WeightToLoseGain),""),"") -> 101%
G119: =IFERROR(RunningBMR,"") ->  | H119: =IFERROR(IF(L118>0,G118*ActivityFactor+IF(WeightGoal="Maintain",0,IF(WeightGoal="Decrease",-500,IF(WeightGoal="Increase",500))),""),"") ->  | I119: =IFERROR(G119*(ActivityFactor),"") ->  | J119: =IFERROR(IF(WeightGoal="Increase",H119-I119,I119-H119),"") ->  | L119: =IFERROR(IF(Standard,K119/CalsPerPound,K119/CalsPerPound/2.2),"") ->  | M119: =IFERROR(WeightToLoseGain-L119,"") ->  | N119: =IFERROR(IF(C118<>"",M119/(WeightToLoseGain),""),"") -> 
G120: =IFERROR(RunningBMR,"") ->  | H120: =IFERROR(IF(L119>0,G119*ActivityFactor+IF(WeightGoal="Maintain",0,IF(WeightGoal="Decrease",-500,IF(WeightGoal="Increase",500))),""),"") ->  | I120: =IFERROR(G120*(ActivityFactor),"") ->  | J120: =IFERROR(IF(WeightGoal="Increase",H120-I120,I120-H120),"") ->  | L120: =IFERROR(IF(Standard,K120/CalsPerPound,K120/CalsPerPound/2.2),"") ->  | M120: =IFERROR(WeightToLoseGain-L120,"") ->  | N120: =IFERROR(IF(C119<>"",M120/(WeightToLoseGain),""),"") -> 
G121: =IFERROR(RunningBMR,"") ->  | H121: =IFERROR(IF(L120>0,G120*ActivityFactor+IF(WeightGoal="Maintain",0,IF(WeightGoal="Decrease",-500,IF(WeightGoal="Increase",500))),""),"") ->  | I121: =IFERROR(G121*(ActivityFactor),"") ->  | J121: =IFERROR(IF(WeightGoal="Increase",H121-I121,I121-H121),"") ->  | L121: =IFERROR(IF(Standard,K121/CalsPerPound,K121/CalsPerPound/2.2),"") ->  | M121: =IFERROR(WeightToLoseGain-L121,"") ->  | N121: =IFERROR(IF(C120<>"",M121/(WeightToLoseGain),""),"") -> 
G122: =IFERROR(RunningBMR,"") ->  | H122: =IFERROR(IF(L121>0,G121*ActivityFactor+IF(WeightGoal="Maintain",0,IF(WeightGoal="Decrease",-500,IF(WeightGoal="Increase",500))),""),"") ->  | I122: =IFERROR(G122*(ActivityFactor),"") ->  | J122: =IFERROR(IF(WeightGoal="Increase",H122-I122,I122-H122),"") ->  | L122: =IFERROR(IF(Standard,K122/CalsPerPound,K122/CalsPerPound/2.2),"") ->  | M122: =IFERROR(WeightToLoseGain-L122,"") ->  | N122: =IFERROR(IF(C121<>"",M122/(WeightToLoseGain),""),"") -> 
G123: =IFERROR(RunningBMR,"") ->  | H123: =IFERROR(IF(L122>0,G122*ActivityFactor+IF(WeightGoal="Maintain",0,IF(WeightGoal="Decrease",-500,IF(WeightGoal="Increase",500))),""),"") ->  | I123: =IFERROR(G123*(ActivityFactor),"") ->  | J123: =IFERROR(IF(WeightGoal="Increase",H123-I123,I123-H123),"") ->  | L123: =IFERROR(IF(Standard,K123/CalsPerPound,K123/CalsPerPound/2.2),"") ->  | M123: =IFERROR(WeightToLoseGain-L123,"") ->  | N123: =IFERROR(IF(C122<>"",M123/(WeightToLoseGain),""),"") -> 
G124: =IFERROR(RunningBMR,"") ->  | H124: =IFERROR(IF(L123>0,G123*ActivityFactor+IF(WeightGoal="Maintain",0,IF(WeightGoal="Decrease",-500,IF(WeightGoal="Increase",500))),""),"") ->  | I124: =IFERROR(G124*(ActivityFactor),"") ->  | J124: =IFERROR(IF(WeightGoal="Increase",H124-I124,I124-H124),"") ->  | L124: =IFERROR(IF(Standard,K124/CalsPerPound,K124/CalsPerPound/2.2),"") ->  | M124: =IFERROR(WeightToLoseGain-L124,"") ->  | N124: =IFERROR(IF(C123<>"",M124/(WeightToLoseGain),""),"") -> 
G125: =IFERROR(RunningBMR,"") ->  | H125: =IFERROR(IF(L124>0,G124*ActivityFactor+IF(WeightGoal="Maintain",0,IF(WeightGoal="Decrease",-500,IF(WeightGoal="Increase",500))),""),"") ->  | I125: =IFERROR(G125*(ActivityFactor),"") ->  | J125: =IFERROR(IF(WeightGoal="Increase",H125-I125,I125-H125),"") ->  | L125: =IFERROR(IF(Standard,K125/CalsPerPound,K125/CalsPerPound/2.2),"") ->  | M125: =IFERROR(WeightToLoseGain-L125,"") ->  | N125: =IFERROR(IF(C124<>"",M125/(WeightToLoseGain),""),"") -> 
G126: =IFERROR(RunningBMR,"") ->  | H126: =IFERROR(IF(L125>0,G125*ActivityFactor+IF(WeightGoal="Maintain",0,IF(WeightGoal="Decrease",-500,IF(WeightGoal="Increase",500))),""),"") ->  | I126: =IFERROR(G126*(ActivityFactor),"") ->  | J126: =IFERROR(IF(WeightGoal="Increase",H126-I126,I126-H126),"") ->  | L126: =IFERROR(IF(Standard,K126/CalsPerPound,K126/CalsPerPound/2.2),"") ->  | M126: =IFERROR(WeightToLoseGain-L126,"") ->  | N126: =IFERROR(IF(C125<>"",M126/(WeightToLoseGain),""),"") -> 
G127: =IFERROR(RunningBMR,"") ->  | H127: =IFERROR(IF(L126>0,G126*ActivityFactor+IF(WeightGoal="Maintain",0,IF(WeightGoal="Decrease",-500,IF(WeightGoal="Increase",500))),""),"") ->  | I127: =IFERROR(G127*(ActivityFactor),"") ->  | J127: =IFERROR(IF(WeightGoal="Increase",H127-I127,I127-H127),"") ->  | L127: =IFERROR(IF(Standard,K127/CalsPerPound,K127/CalsPerPound/2.2),"") ->  | M127: =IFERROR(WeightToLoseGain-L127,"") ->  | N127: =IFERROR(IF(C126<>"",M127/(WeightToLoseGain),""),"") -> 
G128: =IFERROR(RunningBMR,"") ->  | H128: =IFERROR(IF(L127>0,G127*ActivityFactor+IF(WeightGoal="Maintain",0,IF(WeightGoal="Decrease",-500,IF(WeightGoal="Increase",500))),""),"") ->  | I128: =IFERROR(G128*(ActivityFactor),"") ->  | J128: =IFERROR(IF(WeightGoal="Increase",H128-I128,I128-H128),"") ->  | L128: =IFERROR(IF(Standard,K128/CalsPerPound,K128/CalsPerPound/2.2),"") ->  | M128: =IFERROR(WeightToLoseGain-L128,"") ->  | N128: =IFERROR(IF(C127<>"",M128/(WeightToLoseGain),""),"") -> 
G129: =IFERROR(RunningBMR,"") ->  | H129: =IFERROR(IF(L128>0,G128*ActivityFactor+IF(WeightGoal="Maintain",0,IF(WeightGoal="Decrease",-500,IF(WeightGoal="Increase",500))),""),"") ->  | I129: =IFERROR(G129*(ActivityFactor),"") ->  | J129: =IFERROR(IF(WeightGoal="Increase",H129-I129,I129-H129),"") ->  | L129: =IFERROR(IF(Standard,K129/CalsPerPound,K129/CalsPerPound/2.2),"") ->  | M129: =IFERROR(WeightToLoseGain-L129,"") ->  | N129: =IFERROR(IF(C128<>"",M129/(WeightToLoseGain),""),"") -> 
G130: =IFERROR(RunningBMR,"") ->  | H130: =IFERROR(IF(L129>0,G129*ActivityFactor+IF(WeightGoal="Maintain",0,IF(WeightGoal="Decrease",-500,IF(WeightGoal="Increase",500))),""),"") ->  | I130: =IFERROR(G130*(ActivityFactor),"") ->  | J130: =IFERROR(IF(WeightGoal="Increase",H130-I130,I130-H130),"") ->  | L130: =IFERROR(IF(Standard,K130/CalsPerPound,K130/CalsPerPound/2.2),"") ->  | M130: =IFERROR(WeightToLoseGain-L130,"") ->  | N130: =IFERROR(IF(C129<>"",M130/(WeightToLoseGain),""),"") -> 
G131: =IFERROR(RunningBMR,"") ->  | H131: =IFERROR(IF(L130>0,G130*ActivityFactor+IF(WeightGoal="Maintain",0,IF(WeightGoal="Decrease",-500,IF(WeightGoal="Increase",500))),""),"") ->  | I131: =IFERROR(G131*(ActivityFactor),"") ->  | J131: =IFERROR(IF(WeightGoal="Increase",H131-I131,I131-H131),"") ->  | L131: =IFERROR(IF(Standard,K131/CalsPerPound,K131/CalsPerPound/2.2),"") ->  | M131: =IFERROR(WeightToLoseGain-L131,"") ->  | N131: =IFERROR(IF(C130<>"",M131/(WeightToLoseGain),""),"") -> 
G132: =IFERROR(RunningBMR,"") ->  | H132: =IFERROR(IF(L131>0,G131*ActivityFactor+IF(WeightGoal="Maintain",0,IF(WeightGoal="Decrease",-500,IF(WeightGoal="Increase",500))),""),"") ->  | I132: =IFERROR(G132*(ActivityFactor),"") ->  | J132: =IFERROR(IF(WeightGoal="Increase",H132-I132,I132-H132),"") ->  | L132: =IFERROR(IF(Standard,K132/CalsPerPound,K132/CalsPerPound/2.2),"") ->  | M132: =IFERROR(WeightToLoseGain-L132,"") ->  | N132: =IFERROR(IF(C131<>"",M132/(WeightToLoseGain),""),"") -> 
G133: =IFERROR(RunningBMR,"") ->  | H133: =IFERROR(IF(L132>0,G132*ActivityFactor+IF(WeightGoal="Maintain",0,IF(WeightGoal="Decrease",-500,IF(WeightGoal="Increase",500))),""),"") ->  | I133: =IFERROR(G133*(ActivityFactor),"") ->  | J133: =IFERROR(IF(WeightGoal="Increase",H133-I133,I133-H133),"") ->  | L133: =IFERROR(IF(Standard,K133/CalsPerPound,K133/CalsPerPound/2.2),"") ->  | M133: =IFERROR(WeightToLoseGain-L133,"") ->  | N133: =IFERROR(IF(C132<>"",M133/(WeightToLoseGain),""),"") -> 
G134: =IFERROR(RunningBMR,"") ->  | H134: =IFERROR(IF(L133>0,G133*ActivityFactor+IF(WeightGoal="Maintain",0,IF(WeightGoal="Decrease",-500,IF(WeightGoal="Increase",500))),""),"") ->  | I134: =IFERROR(G134*(ActivityFactor),"") ->  | J134: =IFERROR(IF(WeightGoal="Increase",H134-I134,I134-H134),"") ->  | L134: =IFERROR(IF(Standard,K134/CalsPerPound,K134/CalsPerPound/2.2),"") ->  | M134: =IFERROR(WeightToLoseGain-L134,"") ->  | N134: =IFERROR(IF(C133<>"",M134/(WeightToLoseGain),""),"") -> 
G135: =IFERROR(RunningBMR,"") ->  | H135: =IFERROR(IF(L134>0,G134*ActivityFactor+IF(WeightGoal="Maintain",0,IF(WeightGoal="Decrease",-500,IF(WeightGoal="Increase",500))),""),"") ->  | I135: =IFERROR(G135*(ActivityFactor),"") ->  | J135: =IFERROR(IF(WeightGoal="Increase",H135-I135,I135-H135),"") ->  | L135: =IFERROR(IF(Standard,K135/CalsPerPound,K135/CalsPerPound/2.2),"") ->  | M135: =IFERROR(WeightToLoseGain-L135,"") ->  | N135: =IFERROR(IF(C134<>"",M135/(WeightToLoseGain),""),"") -> 
G136: =IFERROR(RunningBMR,"") ->  | H136: =IFERROR(IF(L135>0,G135*ActivityFactor+IF(WeightGoal="Maintain",0,IF(WeightGoal="Decrease",-500,IF(WeightGoal="Increase",500))),""),"") ->  | I136: =IFERROR(G136*(ActivityFactor),"") ->  | J136: =IFERROR(IF(WeightGoal="Increase",H136-I136,I136-H136),"") ->  | L136: =IFERROR(IF(Standard,K136/CalsPerPound,K136/CalsPerPound/2.2),"") ->  | M136: =IFERROR(WeightToLoseGain-L136,"") ->  | N136: =IFERROR(IF(C135<>"",M136/(WeightToLoseGain),""),"") -> 
G137: =IFERROR(RunningBMR,"") ->  | H137: =IFERROR(IF(L136>0,G136*ActivityFactor+IF(WeightGoal="Maintain",0,IF(WeightGoal="Decrease",-500,IF(WeightGoal="Increase",500))),""),"") ->  | I137: =IFERROR(G137*(ActivityFactor),"") ->  | J137: =IFERROR(IF(WeightGoal="Increase",H137-I137,I137-H137),"") ->  | L137: =IFERROR(IF(Standard,K137/CalsPerPound,K137/CalsPerPound/2.2),"") ->  | M137: =IFERROR(WeightToLoseGain-L137,"") ->  | N137: =IFERROR(IF(C136<>"",M137/(WeightToLoseGain),""),"") -> 
G138: =IFERROR(RunningBMR,"") ->  | H138: =IFERROR(IF(L137>0,G137*ActivityFactor+IF(WeightGoal="Maintain",0,IF(WeightGoal="Decrease",-500,IF(WeightGoal="Increase",500))),""),"") ->  | I138: =IFERROR(G138*(ActivityFactor),"") ->  | J138: =IFERROR(IF(WeightGoal="Increase",H138-I138,I138-H138),"") ->  | L138: =IFERROR(IF(Standard,K138/CalsPerPound,K138/CalsPerPound/2.2),"") ->  | M138: =IFERROR(WeightToLoseGain-L138,"") ->  | N138: =IFERROR(IF(C137<>"",M138/(WeightToLoseGain),""),"") -> 
G139: =IFERROR(RunningBMR,"") ->  | H139: =IFERROR(IF(L138>0,G138*ActivityFactor+IF(WeightGoal="Maintain",0,IF(WeightGoal="Decrease",-500,IF(WeightGoal="Increase",500))),""),"") ->  | I139: =IFERROR(G139*(ActivityFactor),"") ->  | J139: =IFERROR(IF(WeightGoal="Increase",H139-I139,I139-H139),"") ->  | L139: =IFERROR(IF(Standard,K139/CalsPerPound,K139/CalsPerPound/2.2),"") ->  | M139: =IFERROR(WeightToLoseGain-L139,"") ->  | N139: =IFERROR(IF(C138<>"",M139/(WeightToLoseGain),""),"") -> 
G140: =IFERROR(RunningBMR,"") ->  | H140: =IFERROR(IF(L139>0,G139*ActivityFactor+IF(WeightGoal="Maintain",0,IF(WeightGoal="Decrease",-500,IF(WeightGoal="Increase",500))),""),"") ->  | I140: =IFERROR(G140*(ActivityFactor),"") ->  | J140: =IFERROR(IF(WeightGoal="Increase",H140-I140,I140-H140),"") ->  | L140: =IFERROR(IF(Standard,K140/CalsPerPound,K140/CalsPerPound/2.2),"") ->  | M140: =IFERROR(WeightToLoseGain-L140,"") ->  | N140: =IFERROR(IF(C139<>"",M140/(WeightToLoseGain),""),"") -> 
C141: =IFERROR(IF(L140>0,C140+1,""),"") ->  | E141: =IFERROR(IF(L140>0,E140+1,""),"") ->  | F141: =IFERROR(IF($E141<>"",F140-(J140/CalsPerPound),""),"") ->  | G141: =IFERROR(RunningBMR,"") ->  | H141: =IFERROR(IF(L140>0,G140*ActivityFactor+IF(WeightGoal="Maintain",0,IF(WeightGoal="Decrease",-500,IF(WeightGoal="Increase",500))),""),"") ->  | I141: =IFERROR(G141*(ActivityFactor),"") ->  | J141: =IFERROR(IF(WeightGoal="Increase",H141-I141,I141-H141),"") ->  | L141: =IFERROR(IF(Standard,K141/CalsPerPound,K141/CalsPerPound/2.2),"") ->  | M141: =IFERROR(WeightToLoseGain-L141,"") ->  | N141: =IFERROR(IF(C140<>"",M141/(WeightToLoseGain),""),"") -> 
D142: =IFERROR(IF(E142<>"",IF(MOD(E142,7)=1,(E141/7)+1,""),""),"") ->  | G142: =IFERROR(RunningBMR,"") ->  | H142: =IFERROR(IF(L141>0,G141*ActivityFactor+IF(WeightGoal="Maintain",0,IF(WeightGoal="Decrease",-500,IF(WeightGoal="Increase",500))),""),"") ->  | I142: =IFERROR(G142*(ActivityFactor),"") ->  | J142: =IFERROR(IF(WeightGoal="Increase",H142-I142,I142-H142),"") ->  | K142: =IFERROR(K141-J142,"") ->  | L142: =IFERROR(IF(Standard,K142/CalsPerPound,K142/CalsPerPound/2.2),"") ->  | M142: =IFERROR(WeightToLoseGain-L142,"") ->  | N142: =IFERROR(IF(C141<>"",M142/(WeightToLoseGain),""),"") -> 
G143: =IFERROR(RunningBMR,"") ->  | H143: =IFERROR(IF(L142>0,G142*ActivityFactor+IF(WeightGoal="Maintain",0,IF(WeightGoal="Decrease",-500,IF(WeightGoal="Increase",500))),""),"") ->  | I143: =IFERROR(G143*(ActivityFactor),"") ->  | J143: =IFERROR(IF(WeightGoal="Increase",H143-I143,I143-H143),"") ->  | L143: =IFERROR(IF(Standard,K143/CalsPerPound,K143/CalsPerPound/2.2),"") ->  | M143: =IFERROR(WeightToLoseGain-L143,"") ->  | N143: =IFERROR(IF(C142<>"",M143/(WeightToLoseGain),""),"") -> 
G144: =IFERROR(RunningBMR,"") ->  | H144: =IFERROR(IF(L143>0,G143*ActivityFactor+IF(WeightGoal="Maintain",0,IF(WeightGoal="Decrease",-500,IF(WeightGoal="Increase",500))),""),"") ->  | I144: =IFERROR(G144*(ActivityFactor),"") ->  | J144: =IFERROR(IF(WeightGoal="Increase",H144-I144,I144-H144),"") ->  | L144: =IFERROR(IF(Standard,K144/CalsPerPound,K144/CalsPerPound/2.2),"") ->  | M144: =IFERROR(WeightToLoseGain-L144,"") ->  | N144: =IFERROR(IF(C143<>"",M144/(WeightToLoseGain),""),"") -> 
G145: =IFERROR(RunningBMR,"") ->  | H145: =IFERROR(IF(L144>0,G144*ActivityFactor+IF(WeightGoal="Maintain",0,IF(WeightGoal="Decrease",-500,IF(WeightGoal="Increase",500))),""),"") ->  | I145: =IFERROR(G145*(ActivityFactor),"") ->  | J145: =IFERROR(IF(WeightGoal="Increase",H145-I145,I145-H145),"") ->  | L145: =IFERROR(IF(Standard,K145/CalsPerPound,K145/CalsPerPound/2.2),"") ->  | M145: =IFERROR(WeightToLoseGain-L145,"") ->  | N145: =IFERROR(IF(C144<>"",M145/(WeightToLoseGain),""),"") -> 
G146: =IFERROR(RunningBMR,"") ->  | H146: =IFERROR(IF(L145>0,G145*ActivityFactor+IF(WeightGoal="Maintain",0,IF(WeightGoal="Decrease",-500,IF(WeightGoal="Increase",500))),""),"") ->  | I146: =IFERROR(G146*(ActivityFactor),"") ->  | J146: =IFERROR(IF(WeightGoal="Increase",H146-I146,I146-H146),"") ->  | L146: =IFERROR(IF(Standard,K146/CalsPerPound,K146/CalsPerPound/2.2),"") ->  | M146: =IFERROR(WeightToLoseGain-L146,"") ->  | N146: =IFERROR(IF(C145<>"",M146/(WeightToLoseGain),""),"") -> 
G147: =IFERROR(RunningBMR,"") ->  | H147: =IFERROR(IF(L146>0,G146*ActivityFactor+IF(WeightGoal="Maintain",0,IF(WeightGoal="Decrease",-500,IF(WeightGoal="Increase",500))),""),"") ->  | I147: =IFERROR(G147*(ActivityFactor),"") ->  | J147: =IFERROR(IF(WeightGoal="Increase",H147-I147,I147-H147),"") ->  | L147: =IFERROR(IF(Standard,K147/CalsPerPound,K147/CalsPerPound/2.2),"") ->  | M147: =IFERROR(WeightToLoseGain-L147,"") ->  | N147: =IFERROR(IF(C146<>"",M147/(WeightToLoseGain),""),"") -> 
G148: =IFERROR(RunningBMR,"") ->  | H148: =IFERROR(IF(L147>0,G147*ActivityFactor+IF(WeightGoal="Maintain",0,IF(WeightGoal="Decrease",-500,IF(WeightGoal="Increase",500))),""),"") ->  | I148: =IFERROR(G148*(ActivityFactor),"") ->  | J148: =IFERROR(IF(WeightGoal="Increase",H148-I148,I148-H148),"") ->  | L148: =IFERROR(IF(Standard,K148/CalsPerPound,K148/CalsPerPound/2.2),"") ->  | M148: =IFERROR(WeightToLoseGain-L148,"") ->  | N148: =IFERROR(IF(C147<>"",M148/(WeightToLoseGain),""),"") -> 
G149: =IFERROR(RunningBMR,"") ->  | H149: =IFERROR(IF(L148>0,G148*ActivityFactor+IF(WeightGoal="Maintain",0,IF(WeightGoal="Decrease",-500,IF(WeightGoal="Increase",500))),""),"") ->  | I149: =IFERROR(G149*(ActivityFactor),"") ->  | J149: =IFERROR(IF(WeightGoal="Increase",H149-I149,I149-H149),"") ->  | L149: =IFERROR(IF(Standard,K149/CalsPerPound,K149/CalsPerPound/2.2),"") ->  | M149: =IFERROR(WeightToLoseGain-L149,"") ->  | N149: =IFERROR(IF(C148<>"",M149/(WeightToLoseGain),""),"") -> 
G150: =IFERROR(RunningBMR,"") ->  | H150: =IFERROR(IF(L149>0,G149*ActivityFactor+IF(WeightGoal="Maintain",0,IF(WeightGoal="Decrease",-500,IF(WeightGoal="Increase",500))),""),"") ->  | I150: =IFERROR(G150*(ActivityFactor),"") ->  | J150: =IFERROR(IF(WeightGoal="Increase",H150-I150,I150-H150),"") ->  | L150: =IFERROR(IF(Standard,K150/CalsPerPound,K150/CalsPerPound/2.2),"") ->  | M150: =IFERROR(WeightToLoseGain-L150,"") ->  | N150: =IFERROR(IF(C149<>"",M150/(WeightToLoseGain),""),"") -> 
G151: =IFERROR(RunningBMR,"") ->  | H151: =IFERROR(IF(L150>0,G150*ActivityFactor+IF(WeightGoal="Maintain",0,IF(WeightGoal="Decrease",-500,IF(WeightGoal="Increase",500))),""),"") ->  | I151: =IFERROR(G151*(ActivityFactor),"") ->  | J151: =IFERROR(IF(WeightGoal="Increase",H151-I151,I151-H151),"") ->  | L151: =IFERROR(IF(Standard,K151/CalsPerPound,K151/CalsPerPound/2.2),"") ->  | M151: =IFERROR(WeightToLoseGain-L151,"") ->  | N151: =IFERROR(IF(C150<>"",M151/(WeightToLoseGain),""),"") -> 
G152: =IFERROR(RunningBMR,"") ->  | H152: =IFERROR(IF(L151>0,G151*ActivityFactor+IF(WeightGoal="Maintain",0,IF(WeightGoal="Decrease",-500,IF(WeightGoal="Increase",500))),""),"") ->  | I152: =IFERROR(G152*(ActivityFactor),"") ->  | J152: =IFERROR(IF(WeightGoal="Increase",H152-I152,I152-H152),"") ->  | L152: =IFERROR(IF(Standard,K152/CalsPerPound,K152/CalsPerPound/2.2),"") ->  | M152: =IFERROR(WeightToLoseGain-L152,"") ->  | N152: =IFERROR(IF(C151<>"",M152/(WeightToLoseGain),""),"") -> 
G153: =IFERROR(RunningBMR,"") ->  | H153: =IFERROR(IF(L152>0,G152*ActivityFactor+IF(WeightGoal="Maintain",0,IF(WeightGoal="Decrease",-500,IF(WeightGoal="Increase",500))),""),"") ->  | I153: =IFERROR(G153*(ActivityFactor),"") ->  | J153: =IFERROR(IF(WeightGoal="Increase",H153-I153,I153-H153),"") ->  | L153: =IFERROR(IF(Standard,K153/CalsPerPound,K153/CalsPerPound/2.2),"") ->  | M153: =IFERROR(WeightToLoseGain-L153,"") ->  | N153: =IFERROR(IF(C152<>"",M153/(WeightToLoseGain),""),"") -> 
G154: =IFERROR(RunningBMR,"") ->  | H154: =IFERROR(IF(L153>0,G153*ActivityFactor+IF(WeightGoal="Maintain",0,IF(WeightGoal="Decrease",-500,IF(WeightGoal="Increase",500))),""),"") ->  | I154: =IFERROR(G154*(ActivityFactor),"") ->  | J154: =IFERROR(IF(WeightGoal="Increase",H154-I154,I154-H154),"") ->  | L154: =IFERROR(IF(Standard,K154/CalsPerPound,K154/CalsPerPound/2.2),"") ->  | M154: =IFERROR(WeightToLoseGain-L154,"") ->  | N154: =IFERROR(IF(C153<>"",M154/(WeightToLoseGain),""),"") -> 
G155: =IFERROR(RunningBMR,"") ->  | H155: =IFERROR(IF(L154>0,G154*ActivityFactor+IF(WeightGoal="Maintain",0,IF(WeightGoal="Decrease",-500,IF(WeightGoal="Increase",500))),""),"") ->  | I155: =IFERROR(G155*(ActivityFactor),"") ->  | J155: =IFERROR(IF(WeightGoal="Increase",H155-I155,I155-H155),"") ->  | L155: =IFERROR(IF(Standard,K155/CalsPerPound,K155/CalsPerPound/2.2),"") ->  | M155: =IFERROR(WeightToLoseGain-L155,"") ->  | N155: =IFERROR(IF(C154<>"",M155/(WeightToLoseGain),""),"") -> 
G156: =IFERROR(RunningBMR,"") ->  | H156: =IFERROR(IF(L155>0,G155*ActivityFactor+IF(WeightGoal="Maintain",0,IF(WeightGoal="Decrease",-500,IF(WeightGoal="Increase",500))),""),"") ->  | I156: =IFERROR(G156*(ActivityFactor),"") ->  | J156: =IFERROR(IF(WeightGoal="Increase",H156-I156,I156-H156),"") ->  | L156: =IFERROR(IF(Standard,K156/CalsPerPound,K156/CalsPerPound/2.2),"") ->  | M156: =IFERROR(WeightToLoseGain-L156,"") ->  | N156: =IFERROR(IF(C155<>"",M156/(WeightToLoseGain),""),"") -> 
G157: =IFERROR(RunningBMR,"") ->  | H157: =IFERROR(IF(L156>0,G156*ActivityFactor+IF(WeightGoal="Maintain",0,IF(WeightGoal="Decrease",-500,IF(WeightGoal="Increase",500))),""),"") ->  | I157: =IFERROR(G157*(ActivityFactor),"") ->  | J157: =IFERROR(IF(WeightGoal="Increase",H157-I157,I157-H157),"") ->  | L157: =IFERROR(IF(Standard,K157/CalsPerPound,K157/CalsPerPound/2.2),"") ->  | M157: =IFERROR(WeightToLoseGain-L157,"") ->  | N157: =IFERROR(IF(C156<>"",M157/(WeightToLoseGain),""),"") -> 
G158: =IFERROR(RunningBMR,"") ->  | H158: =IFERROR(IF(L157>0,G157*ActivityFactor+IF(WeightGoal="Maintain",0,IF(WeightGoal="Decrease",-500,IF(WeightGoal="Increase",500))),""),"") ->  | I158: =IFERROR(G158*(ActivityFactor),"") ->  | J158: =IFERROR(IF(WeightGoal="Increase",H158-I158,I158-H158),"") ->  | L158: =IFERROR(IF(Standard,K158/CalsPerPound,K158/CalsPerPound/2.2),"") ->  | M158: =IFERROR(WeightToLoseGain-L158,"") ->  | N158: =IFERROR(IF(C157<>"",M158/(WeightToLoseGain),""),"") -> 
G159: =IFERROR(RunningBMR,"") ->  | H159: =IFERROR(IF(L158>0,G158*ActivityFactor+IF(WeightGoal="Maintain",0,IF(WeightGoal="Decrease",-500,IF(WeightGoal="Increase",500))),""),"") ->  | I159: =IFERROR(G159*(ActivityFactor),"") ->  | J159: =IFERROR(IF(WeightGoal="Increase",H159-I159,I159-H159),"") ->  | L159: =IFERROR(IF(Standard,K159/CalsPerPound,K159/CalsPerPound/2.2),"") ->  | M159: =IFERROR(WeightToLoseGain-L159,"") ->  | N159: =IFERROR(IF(C158<>"",M159/(WeightToLoseGain),""),"") -> 
G160: =IFERROR(RunningBMR,"") ->  | H160: =IFERROR(IF(L159>0,G159*ActivityFactor+IF(WeightGoal="Maintain",0,IF(WeightGoal="Decrease",-500,IF(WeightGoal="Increase",500))),""),"") ->  | I160: =IFERROR(G160*(ActivityFactor),"") ->  | J160: =IFERROR(IF(WeightGoal="Increase",H160-I160,I160-H160),"") ->  | L160: =IFERROR(IF(Standard,K160/CalsPerPound,K160/CalsPerPound/2.2),"") ->  | M160: =IFERROR(WeightToLoseGain-L160,"") ->  | N160: =IFERROR(IF(C159<>"",M160/(WeightToLoseGain),""),"") -> 
G161: =IFERROR(RunningBMR,"") ->  | H161: =IFERROR(IF(L160>0,G160*ActivityFactor+IF(WeightGoal="Maintain",0,IF(WeightGoal="Decrease",-500,IF(WeightGoal="Increase",500))),""),"") ->  | I161: =IFERROR(G161*(ActivityFactor),"") ->  | J161: =IFERROR(IF(WeightGoal="Increase",H161-I161,I161-H161),"") ->  | L161: =IFERROR(IF(Standard,K161/CalsPerPound,K161/CalsPerPound/2.2),"") ->  | M161: =IFERROR(WeightToLoseGain-L161,"") ->  | N161: =IFERROR(IF(C160<>"",M161/(WeightToLoseGain),""),"") -> 
G162: =IFERROR(RunningBMR,"") ->  | H162: =IFERROR(IF(L161>0,G161*ActivityFactor+IF(WeightGoal="Maintain",0,IF(WeightGoal="Decrease",-500,IF(WeightGoal="Increase",500))),""),"") ->  | I162: =IFERROR(G162*(ActivityFactor),"") ->  | J162: =IFERROR(IF(WeightGoal="Increase",H162-I162,I162-H162),"") ->  | L162: =IFERROR(IF(Standard,K162/CalsPerPound,K162/CalsPerPound/2.2),"") ->  | M162: =IFERROR(WeightToLoseGain-L162,"") ->  | N162: =IFERROR(IF(C161<>"",M162/(WeightToLoseGain),""),"") -> 
G163: =IFERROR(RunningBMR,"") ->  | H163: =IFERROR(IF(L162>0,G162*ActivityFactor+IF(WeightGoal="Maintain",0,IF(WeightGoal="Decrease",-500,IF(WeightGoal="Increase",500))),""),"") ->  | I163: =IFERROR(G163*(ActivityFactor),"") ->  | J163: =IFERROR(IF(WeightGoal="Increase",H163-I163,I163-H163),"") ->  | L163: =IFERROR(IF(Standard,K163/CalsPerPound,K163/CalsPerPound/2.2),"") ->  | M163: =IFERROR(WeightToLoseGain-L163,"") ->  | N163: =IFERROR(IF(C162<>"",M163/(WeightToLoseGain),""),"") -> 
G164: =IFERROR(RunningBMR,"") ->  | H164: =IFERROR(IF(L163>0,G163*ActivityFactor+IF(WeightGoal="Maintain",0,IF(WeightGoal="Decrease",-500,IF(WeightGoal="Increase",500))),""),"") ->  | I164: =IFERROR(G164*(ActivityFactor),"") ->  | J164: =IFERROR(IF(WeightGoal="Increase",H164-I164,I164-H164),"") ->  | L164: =IFERROR(IF(Standard,K164/CalsPerPound,K164/CalsPerPound/2.2),"") ->  | M164: =IFERROR(WeightToLoseGain-L164,"") ->  | N164: =IFERROR(IF(C163<>"",M164/(WeightToLoseGain),""),"") -> 
G165: =IFERROR(RunningBMR,"") ->  | H165: =IFERROR(IF(L164>0,G164*ActivityFactor+IF(WeightGoal="Maintain",0,IF(WeightGoal="Decrease",-500,IF(WeightGoal="Increase",500))),""),"") ->  | I165: =IFERROR(G165*(ActivityFactor),"") ->  | J165: =IFERROR(IF(WeightGoal="Increase",H165-I165,I165-H165),"") ->  | L165: =IFERROR(IF(Standard,K165/CalsPerPound,K165/CalsPerPound/2.2),"") ->  | M165: =IFERROR(WeightToLoseGain-L165,"") ->  | N165: =IFERROR(IF(C164<>"",M165/(WeightToLoseGain),""),"") -> 
G166: =IFERROR(RunningBMR,"") ->  | H166: =IFERROR(IF(L165>0,G165*ActivityFactor+IF(WeightGoal="Maintain",0,IF(WeightGoal="Decrease",-500,IF(WeightGoal="Increase",500))),""),"") ->  | I166: =IFERROR(G166*(ActivityFactor),"") ->  | J166: =IFERROR(IF(WeightGoal="Increase",H166-I166,I166-H166),"") ->  | L166: =IFERROR(IF(Standard,K166/CalsPerPound,K166/CalsPerPound/2.2),"") ->  | M166: =IFERROR(WeightToLoseGain-L166,"") ->  | N166: =IFERROR(IF(C165<>"",M166/(WeightToLoseGain),""),"") -> 
G167: =IFERROR(RunningBMR,"") ->  | H167: =IFERROR(IF(L166>0,G166*ActivityFactor+IF(WeightGoal="Maintain",0,IF(WeightGoal="Decrease",-500,IF(WeightGoal="Increase",500))),""),"") ->  | I167: =IFERROR(G167*(ActivityFactor),"") ->  | J167: =IFERROR(IF(WeightGoal="Increase",H167-I167,I167-H167),"") ->  | L167: =IFERROR(IF(Standard,K167/CalsPerPound,K167/CalsPerPound/2.2),"") ->  | M167: =IFERROR(WeightToLoseGain-L167,"") ->  | N167: =IFERROR(IF(C166<>"",M167/(WeightToLoseGain),""),"") -> 
G168: =IFERROR(RunningBMR,"") ->  | H168: =IFERROR(IF(L167>0,G167*ActivityFactor+IF(WeightGoal="Maintain",0,IF(WeightGoal="Decrease",-500,IF(WeightGoal="Increase",500))),""),"") ->  | I168: =IFERROR(G168*(ActivityFactor),"") ->  | J168: =IFERROR(IF(WeightGoal="Increase",H168-I168,I168-H168),"") ->  | L168: =IFERROR(IF(Standard,K168/CalsPerPound,K168/CalsPerPound/2.2),"") ->  | M168: =IFERROR(WeightToLoseGain-L168,"") ->  | N168: =IFERROR(IF(C167<>"",M168/(WeightToLoseGain),""),"") -> 
G169: =IFERROR(RunningBMR,"") ->  | H169: =IFERROR(IF(L168>0,G168*ActivityFactor+IF(WeightGoal="Maintain",0,IF(WeightGoal="Decrease",-500,IF(WeightGoal="Increase",500))),""),"") ->  | I169: =IFERROR(G169*(ActivityFactor),"") ->  | J169: =IFERROR(IF(WeightGoal="Increase",H169-I169,I169-H169),"") ->  | L169: =IFERROR(IF(Standard,K169/CalsPerPound,K169/CalsPerPound/2.2),"") ->  | M169: =IFERROR(WeightToLoseGain-L169,"") ->  | N169: =IFERROR(IF(C168<>"",M169/(WeightToLoseGain),""),"") -> 
G170: =IFERROR(RunningBMR,"") ->  | H170: =IFERROR(IF(L169>0,G169*ActivityFactor+IF(WeightGoal="Maintain",0,IF(WeightGoal="Decrease",-500,IF(WeightGoal="Increase",500))),""),"") ->  | I170: =IFERROR(G170*(ActivityFactor),"") ->  | J170: =IFERROR(IF(WeightGoal="Increase",H170-I170,I170-H170),"") ->  | L170: =IFERROR(IF(Standard,K170/CalsPerPound,K170/CalsPerPound/2.2),"") ->  | M170: =IFERROR(WeightToLoseGain-L170,"") ->  | N170: =IFERROR(IF(C169<>"",M170/(WeightToLoseGain),""),"") -> 
G171: =IFERROR(RunningBMR,"") ->  | H171: =IFERROR(IF(L170>0,G170*ActivityFactor+IF(WeightGoal="Maintain",0,IF(WeightGoal="Decrease",-500,IF(WeightGoal="Increase",500))),""),"") ->  | I171: =IFERROR(G171*(ActivityFactor),"") ->  | J171: =IFERROR(IF(WeightGoal="Increase",H171-I171,I171-H171),"") ->  | L171: =IFERROR(IF(Standard,K171/CalsPerPound,K171/CalsPerPound/2.2),"") ->  | M171: =IFERROR(WeightToLoseGain-L171,"") ->  | N171: =IFERROR(IF(C170<>"",M171/(WeightToLoseGain),""),"") -> 
G172: =IFERROR(RunningBMR,"") ->  | H172: =IFERROR(IF(L171>0,G171*ActivityFactor+IF(WeightGoal="Maintain",0,IF(WeightGoal="Decrease",-500,IF(WeightGoal="Increase",500))),""),"") ->  | I172: =IFERROR(G172*(ActivityFactor),"") ->  | J172: =IFERROR(IF(WeightGoal="Increase",H172-I172,I172-H172),"") ->  | L172: =IFERROR(IF(Standard,K172/CalsPerPound,K172/CalsPerPound/2.2),"") ->  | M172: =IFERROR(WeightToLoseGain-L172,"") ->  | N172: =IFERROR(IF(C171<>"",M172/(WeightToLoseGain),""),"") -> 
G173: =IFERROR(RunningBMR,"") ->  | H173: =IFERROR(IF(L172>0,G172*ActivityFactor+IF(WeightGoal="Maintain",0,IF(WeightGoal="Decrease",-500,IF(WeightGoal="Increase",500))),""),"") ->  | I173: =IFERROR(G173*(ActivityFactor),"") ->  | J173: =IFERROR(IF(WeightGoal="Increase",H173-I173,I173-H173),"") ->  | L173: =IFERROR(IF(Standard,K173/CalsPerPound,K173/CalsPerPound/2.2),"") ->  | M173: =IFERROR(WeightToLoseGain-L173,"") ->  | N173: =IFERROR(IF(C172<>"",M173/(WeightToLoseGain),""),"") -> 
G174: =IFERROR(RunningBMR,"") ->  | H174: =IFERROR(IF(L173>0,G173*ActivityFactor+IF(WeightGoal="Maintain",0,IF(WeightGoal="Decrease",-500,IF(WeightGoal="Increase",500))),""),"") ->  | I174: =IFERROR(G174*(ActivityFactor),"") ->  | J174: =IFERROR(IF(WeightGoal="Increase",H174-I174,I174-H174),"") ->  | L174: =IFERROR(IF(Standard,K174/CalsPerPound,K174/CalsPerPound/2.2),"") ->  | M174: =IFERROR(WeightToLoseGain-L174,"") ->  | N174: =IFERROR(IF(C173<>"",M174/(WeightToLoseGain),""),"") -> 
G175: =IFERROR(RunningBMR,"") ->  | H175: =IFERROR(IF(L174>0,G174*ActivityFactor+IF(WeightGoal="Maintain",0,IF(WeightGoal="Decrease",-500,IF(WeightGoal="Increase",500))),""),"") ->  | I175: =IFERROR(G175*(ActivityFactor),"") ->  | J175: =IFERROR(IF(WeightGoal="Increase",H175-I175,I175-H175),"") ->  | L175: =IFERROR(IF(Standard,K175/CalsPerPound,K175/CalsPerPound/2.2),"") ->  | M175: =IFERROR(WeightToLoseGain-L175,"") ->  | N175: =IFERROR(IF(C174<>"",M175/(WeightToLoseGain),""),"") -> 
G176: =IFERROR(RunningBMR,"") ->  | H176: =IFERROR(IF(L175>0,G175*ActivityFactor+IF(WeightGoal="Maintain",0,IF(WeightGoal="Decrease",-500,IF(WeightGoal="Increase",500))),""),"") ->  | I176: =IFERROR(G176*(ActivityFactor),"") ->  | J176: =IFERROR(IF(WeightGoal="Increase",H176-I176,I176-H176),"") ->  | L176: =IFERROR(IF(Standard,K176/CalsPerPound,K176/CalsPerPound/2.2),"") ->  | M176: =IFERROR(WeightToLoseGain-L176,"") ->  | N176: =IFERROR(IF(C175<>"",M176/(WeightToLoseGain),""),"") -> 
G177: =IFERROR(RunningBMR,"") ->  | H177: =IFERROR(IF(L176>0,G176*ActivityFactor+IF(WeightGoal="Maintain",0,IF(WeightGoal="Decrease",-500,IF(WeightGoal="Increase",500))),""),"") ->  | I177: =IFERROR(G177*(ActivityFactor),"") ->  | J177: =IFERROR(IF(WeightGoal="Increase",H177-I177,I177-H177),"") ->  | L177: =IFERROR(IF(Standard,K177/CalsPerPound,K177/CalsPerPound/2.2),"") ->  | M177: =IFERROR(WeightToLoseGain-L177,"") ->  | N177: =IFERROR(IF(C176<>"",M177/(WeightToLoseGain),""),"") -> 
G178: =IFERROR(RunningBMR,"") ->  | H178: =IFERROR(IF(L177>0,G177*ActivityFactor+IF(WeightGoal="Maintain",0,IF(WeightGoal="Decrease",-500,IF(WeightGoal="Increase",500))),""),"") ->  | I178: =IFERROR(G178*(ActivityFactor),"") ->  | J178: =IFERROR(IF(WeightGoal="Increase",H178-I178,I178-H178),"") ->  | L178: =IFERROR(IF(Standard,K178/CalsPerPound,K178/CalsPerPound/2.2),"") ->  | M178: =IFERROR(WeightToLoseGain-L178,"") ->  | N178: =IFERROR(IF(C177<>"",M178/(WeightToLoseGain),""),"") -> 
G179: =IFERROR(RunningBMR,"") ->  | H179: =IFERROR(IF(L178>0,G178*ActivityFactor+IF(WeightGoal="Maintain",0,IF(WeightGoal="Decrease",-500,IF(WeightGoal="Increase",500))),""),"") ->  | I179: =IFERROR(G179*(ActivityFactor),"") ->  | J179: =IFERROR(IF(WeightGoal="Increase",H179-I179,I179-H179),"") ->  | L179: =IFERROR(IF(Standard,K179/CalsPerPound,K179/CalsPerPound/2.2),"") ->  | M179: =IFERROR(WeightToLoseGain-L179,"") ->  | N179: =IFERROR(IF(C178<>"",M179/(WeightToLoseGain),""),"") -> 
G180: =IFERROR(RunningBMR,"") ->  | H180: =IFERROR(IF(L179>0,G179*ActivityFactor+IF(WeightGoal="Maintain",0,IF(WeightGoal="Decrease",-500,IF(WeightGoal="Increase",500))),""),"") ->  | I180: =IFERROR(G180*(ActivityFactor),"") ->  | J180: =IFERROR(IF(WeightGoal="Increase",H180-I180,I180-H180),"") ->  | L180: =IFERROR(IF(Standard,K180/CalsPerPound,K180/CalsPerPound/2.2),"") ->  | M180: =IFERROR(WeightToLoseGain-L180,"") ->  | N180: =IFERROR(IF(C179<>"",M180/(WeightToLoseGain),""),"") -> 
G181: =IFERROR(RunningBMR,"") ->  | H181: =IFERROR(IF(L180>0,G180*ActivityFactor+IF(WeightGoal="Maintain",0,IF(WeightGoal="Decrease",-500,IF(WeightGoal="Increase",500))),""),"") ->  | I181: =IFERROR(G181*(ActivityFactor),"") ->  | J181: =IFERROR(IF(WeightGoal="Increase",H181-I181,I181-H181),"") ->  | L181: =IFERROR(IF(Standard,K181/CalsPerPound,K181/CalsPerPound/2.2),"") ->  | M181: =IFERROR(WeightToLoseGain-L181,"") ->  | N181: =IFERROR(IF(C180<>"",M181/(WeightToLoseGain),""),"") -> 
G182: =IFERROR(RunningBMR,"") ->  | H182: =IFERROR(IF(L181>0,G181*ActivityFactor+IF(WeightGoal="Maintain",0,IF(WeightGoal="Decrease",-500,IF(WeightGoal="Increase",500))),""),"") ->  | I182: =IFERROR(G182*(ActivityFactor),"") ->  | J182: =IFERROR(IF(WeightGoal="Increase",H182-I182,I182-H182),"") ->  | L182: =IFERROR(IF(Standard,K182/CalsPerPound,K182/CalsPerPound/2.2),"") ->  | M182: =IFERROR(WeightToLoseGain-L182,"") ->  | N182: =IFERROR(IF(C181<>"",M182/(WeightToLoseGain),""),"") -> 
G183: =IFERROR(RunningBMR,"") ->  | H183: =IFERROR(IF(L182>0,G182*ActivityFactor+IF(WeightGoal="Maintain",0,IF(WeightGoal="Decrease",-500,IF(WeightGoal="Increase",500))),""),"") ->  | I183: =IFERROR(G183*(ActivityFactor),"") ->  | J183: =IFERROR(IF(WeightGoal="Increase",H183-I183,I183-H183),"") ->  | L183: =IFERROR(IF(Standard,K183/CalsPerPound,K183/CalsPerPound/2.2),"") ->  | M183: =IFERROR(WeightToLoseGain-L183,"") ->  | N183: =IFERROR(IF(C182<>"",M183/(WeightToLoseGain),""),"") -> 
G184: =IFERROR(RunningBMR,"") ->  | H184: =IFERROR(IF(L183>0,G183*ActivityFactor+IF(WeightGoal="Maintain",0,IF(WeightGoal="Decrease",-500,IF(WeightGoal="Increase",500))),""),"") ->  | I184: =IFERROR(G184*(ActivityFactor),"") ->  | J184: =IFERROR(IF(WeightGoal="Increase",H184-I184,I184-H184),"") ->  | L184: =IFERROR(IF(Standard,K184/CalsPerPound,K184/CalsPerPound/2.2),"") ->  | M184: =IFERROR(WeightToLoseGain-L184,"") ->  | N184: =IFERROR(IF(C183<>"",M184/(WeightToLoseGain),""),"") -> 
G185: =IFERROR(RunningBMR,"") ->  | H185: =IFERROR(IF(L184>0,G184*ActivityFactor+IF(WeightGoal="Maintain",0,IF(WeightGoal="Decrease",-500,IF(WeightGoal="Increase",500))),""),"") ->  | I185: =IFERROR(G185*(ActivityFactor),"") ->  | J185: =IFERROR(IF(WeightGoal="Increase",H185-I185,I185-H185),"") ->  | L185: =IFERROR(IF(Standard,K185/CalsPerPound,K185/CalsPerPound/2.2),"") ->  | M185: =IFERROR(WeightToLoseGain-L185,"") ->  | N185: =IFERROR(IF(C184<>"",M185/(WeightToLoseGain),""),"") -> 
G186: =IFERROR(RunningBMR,"") ->  | H186: =IFERROR(IF(L185>0,G185*ActivityFactor+IF(WeightGoal="Maintain",0,IF(WeightGoal="Decrease",-500,IF(WeightGoal="Increase",500))),""),"") ->  | I186: =IFERROR(G186*(ActivityFactor),"") ->  | J186: =IFERROR(IF(WeightGoal="Increase",H186-I186,I186-H186),"") ->  | L186: =IFERROR(IF(Standard,K186/CalsPerPound,K186/CalsPerPound/2.2),"") ->  | M186: =IFERROR(WeightToLoseGain-L186,"") ->  | N186: =IFERROR(IF(C185<>"",M186/(WeightToLoseGain),""),"") -> 
G187: =IFERROR(RunningBMR,"") ->  | H187: =IFERROR(IF(L186>0,G186*ActivityFactor+IF(WeightGoal="Maintain",0,IF(WeightGoal="Decrease",-500,IF(WeightGoal="Increase",500))),""),"") ->  | I187: =IFERROR(G187*(ActivityFactor),"") ->  | J187: =IFERROR(IF(WeightGoal="Increase",H187-I187,I187-H187),"") ->  | L187: =IFERROR(IF(Standard,K187/CalsPerPound,K187/CalsPerPound/2.2),"") ->  | M187: =IFERROR(WeightToLoseGain-L187,"") ->  | N187: =IFERROR(IF(C186<>"",M187/(WeightToLoseGain),""),"") -> 
G188: =IFERROR(RunningBMR,"") ->  | H188: =IFERROR(IF(L187>0,G187*ActivityFactor+IF(WeightGoal="Maintain",0,IF(WeightGoal="Decrease",-500,IF(WeightGoal="Increase",500))),""),"") ->  | I188: =IFERROR(G188*(ActivityFactor),"") ->  | J188: =IFERROR(IF(WeightGoal="Increase",H188-I188,I188-H188),"") ->  | L188: =IFERROR(IF(Standard,K188/CalsPerPound,K188/CalsPerPound/2.2),"") ->  | M188: =IFERROR(WeightToLoseGain-L188,"") ->  | N188: =IFERROR(IF(C187<>"",M188/(WeightToLoseGain),""),"") -> 
G189: =IFERROR(RunningBMR,"") ->  | H189: =IFERROR(IF(L188>0,G188*ActivityFactor+IF(WeightGoal="Maintain",0,IF(WeightGoal="Decrease",-500,IF(WeightGoal="Increase",500))),""),"") ->  | I189: =IFERROR(G189*(ActivityFactor),"") ->  | J189: =IFERROR(IF(WeightGoal="Increase",H189-I189,I189-H189),"") ->  | L189: =IFERROR(IF(Standard,K189/CalsPerPound,K189/CalsPerPound/2.2),"") ->  | M189: =IFERROR(WeightToLoseGain-L189,"") ->  | N189: =IFERROR(IF(C188<>"",M189/(WeightToLoseGain),""),"") -> 
G190: =IFERROR(RunningBMR,"") ->  | H190: =IFERROR(IF(L189>0,G189*ActivityFactor+IF(WeightGoal="Maintain",0,IF(WeightGoal="Decrease",-500,IF(WeightGoal="Increase",500))),""),"") ->  | I190: =IFERROR(G190*(ActivityFactor),"") ->  | J190: =IFERROR(IF(WeightGoal="Increase",H190-I190,I190-H190),"") ->  | L190: =IFERROR(IF(Standard,K190/CalsPerPound,K190/CalsPerPound/2.2),"") ->  | M190: =IFERROR(WeightToLoseGain-L190,"") ->  | N190: =IFERROR(IF(C189<>"",M190/(WeightToLoseGain),""),"") -> 
G191: =IFERROR(RunningBMR,"") ->  | H191: =IFERROR(IF(L190>0,G190*ActivityFactor+IF(WeightGoal="Maintain",0,IF(WeightGoal="Decrease",-500,IF(WeightGoal="Increase",500))),""),"") ->  | I191: =IFERROR(G191*(ActivityFactor),"") ->  | J191: =IFERROR(IF(WeightGoal="Increase",H191-I191,I191-H191),"") ->  | L191: =IFERROR(IF(Standard,K191/CalsPerPound,K191/CalsPerPound/2.2),"") ->  | M191: =IFERROR(WeightToLoseGain-L191,"") ->  | N191: =IFERROR(IF(C190<>"",M191/(WeightToLoseGain),""),"") -> 
G192: =IFERROR(RunningBMR,"") ->  | H192: =IFERROR(IF(L191>0,G191*ActivityFactor+IF(WeightGoal="Maintain",0,IF(WeightGoal="Decrease",-500,IF(WeightGoal="Increase",500))),""),"") ->  | I192: =IFERROR(G192*(ActivityFactor),"") ->  | J192: =IFERROR(IF(WeightGoal="Increase",H192-I192,I192-H192),"") ->  | L192: =IFERROR(IF(Standard,K192/CalsPerPound,K192/CalsPerPound/2.2),"") ->  | M192: =IFERROR(WeightToLoseGain-L192,"") ->  | N192: =IFERROR(IF(C191<>"",M192/(WeightToLoseGain),""),"") -> 
G193: =IFERROR(RunningBMR,"") ->  | H193: =IFERROR(IF(L192>0,G192*ActivityFactor+IF(WeightGoal="Maintain",0,IF(WeightGoal="Decrease",-500,IF(WeightGoal="Increase",500))),""),"") ->  | I193: =IFERROR(G193*(ActivityFactor),"") ->  | J193: =IFERROR(IF(WeightGoal="Increase",H193-I193,I193-H193),"") ->  | L193: =IFERROR(IF(Standard,K193/CalsPerPound,K193/CalsPerPound/2.2),"") ->  | M193: =IFERROR(WeightToLoseGain-L193,"") ->  | N193: =IFERROR(IF(C192<>"",M193/(WeightToLoseGain),""),"") -> 
G194: =IFERROR(RunningBMR,"") ->  | H194: =IFERROR(IF(L193>0,G193*ActivityFactor+IF(WeightGoal="Maintain",0,IF(WeightGoal="Decrease",-500,IF(WeightGoal="Increase",500))),""),"") ->  | I194: =IFERROR(G194*(ActivityFactor),"") ->  | J194: =IFERROR(IF(WeightGoal="Increase",H194-I194,I194-H194),"") ->  | L194: =IFERROR(IF(Standard,K194/CalsPerPound,K194/CalsPerPound/2.2),"") ->  | M194: =IFERROR(WeightToLoseGain-L194,"") ->  | N194: =IFERROR(IF(C193<>"",M194/(WeightToLoseGain),""),"") -> 
G195: =IFERROR(RunningBMR,"") ->  | H195: =IFERROR(IF(L194>0,G194*ActivityFactor+IF(WeightGoal="Maintain",0,IF(WeightGoal="Decrease",-500,IF(WeightGoal="Increase",500))),""),"") ->  | I195: =IFERROR(G195*(ActivityFactor),"") ->  | J195: =IFERROR(IF(WeightGoal="Increase",H195-I195,I195-H195),"") ->  | L195: =IFERROR(IF(Standard,K195/CalsPerPound,K195/CalsPerPound/2.2),"") ->  | M195: =IFERROR(WeightToLoseGain-L195,"") ->  | N195: =IFERROR(IF(C194<>"",M195/(WeightToLoseGain),""),"") -> 
G196: =IFERROR(RunningBMR,"") ->  | H196: =IFERROR(IF(L195>0,G195*ActivityFactor+IF(WeightGoal="Maintain",0,IF(WeightGoal="Decrease",-500,IF(WeightGoal="Increase",500))),""),"") ->  | I196: =IFERROR(G196*(ActivityFactor),"") ->  | J196: =IFERROR(IF(WeightGoal="Increase",H196-I196,I196-H196),"") ->  | L196: =IFERROR(IF(Standard,K196/CalsPerPound,K196/CalsPerPound/2.2),"") ->  | M196: =IFERROR(WeightToLoseGain-L196,"") ->  | N196: =IFERROR(IF(C195<>"",M196/(WeightToLoseGain),""),"") -> 
G197: =IFERROR(RunningBMR,"") ->  | H197: =IFERROR(IF(L196>0,G196*ActivityFactor+IF(WeightGoal="Maintain",0,IF(WeightGoal="Decrease",-500,IF(WeightGoal="Increase",500))),""),"") ->  | I197: =IFERROR(G197*(ActivityFactor),"") ->  | J197: =IFERROR(IF(WeightGoal="Increase",H197-I197,I197-H197),"") ->  | L197: =IFERROR(IF(Standard,K197/CalsPerPound,K197/CalsPerPound/2.2),"") ->  | M197: =IFERROR(WeightToLoseGain-L197,"") ->  | N197: =IFERROR(IF(C196<>"",M197/(WeightToLoseGain),""),"") -> 
G198: =IFERROR(RunningBMR,"") ->  | H198: =IFERROR(IF(L197>0,G197*ActivityFactor+IF(WeightGoal="Maintain",0,IF(WeightGoal="Decrease",-500,IF(WeightGoal="Increase",500))),""),"") ->  | I198: =IFERROR(G198*(ActivityFactor),"") ->  | J198: =IFERROR(IF(WeightGoal="Increase",H198-I198,I198-H198),"") ->  | L198: =IFERROR(IF(Standard,K198/CalsPerPound,K198/CalsPerPound/2.2),"") ->  | M198: =IFERROR(WeightToLoseGain-L198,"") ->  | N198: =IFERROR(IF(C197<>"",M198/(WeightToLoseGain),""),"") -> 
G199: =IFERROR(RunningBMR,"") ->  | H199: =IFERROR(IF(L198>0,G198*ActivityFactor+IF(WeightGoal="Maintain",0,IF(WeightGoal="Decrease",-500,IF(WeightGoal="Increase",500))),""),"") ->  | I199: =IFERROR(G199*(ActivityFactor),"") ->  | J199: =IFERROR(IF(WeightGoal="Increase",H199-I199,I199-H199),"") ->  | L199: =IFERROR(IF(Standard,K199/CalsPerPound,K199/CalsPerPound/2.2),"") ->  | M199: =IFERROR(WeightToLoseGain-L199,"") ->  | N199: =IFERROR(IF(C198<>"",M199/(WeightToLoseGain),""),"") -> 
G200: =IFERROR(RunningBMR,"") ->  | H200: =IFERROR(IF(L199>0,G199*ActivityFactor+IF(WeightGoal="Maintain",0,IF(WeightGoal="Decrease",-500,IF(WeightGoal="Increase",500))),""),"") ->  | I200: =IFERROR(G200*(ActivityFactor),"") ->  | J200: =IFERROR(IF(WeightGoal="Increase",H200-I200,I200-H200),"") ->  | L200: =IFERROR(IF(Standard,K200/CalsPerPound,K200/CalsPerPound/2.2),"") ->  | M200: =IFERROR(WeightToLoseGain-L200,"") ->  | N200: =IFERROR(IF(C199<>"",M200/(WeightToLoseGain),""),"") -> 
G201: =IFERROR(RunningBMR,"") ->  | H201: =IFERROR(IF(L200>0,G200*ActivityFactor+IF(WeightGoal="Maintain",0,IF(WeightGoal="Decrease",-500,IF(WeightGoal="Increase",500))),""),"") ->  | I201: =IFERROR(G201*(ActivityFactor),"") ->  | J201: =IFERROR(IF(WeightGoal="Increase",H201-I201,I201-H201),"") ->  | L201: =IFERROR(IF(Standard,K201/CalsPerPound,K201/CalsPerPound/2.2),"") ->  | M201: =IFERROR(WeightToLoseGain-L201,"") ->  | N201: =IFERROR(IF(C200<>"",M201/(WeightToLoseGain),""),"") -> 
... 798 more rows

Sheet Exercise Type Lookup (hidden)
B1: Exercise Type Lookup
B2: This sheet should remain hidden.
B3: EXERCISE TYPE | C3: DESCRIPTION | D3: FACTOR
B4: SEDENTARY | C4: LITTLE TO NO EXERCISE | D4: 1.2
B5: LIGHT ACTIVITY | C5: EXERCISE 1-2 DAYS/WEEK | D5: 1.375
B6: MODERATE ACTIVITY | C6: EXERCISE 3-5 DAYS/WEEK | D6: 1.55
B7: VERY ACTIVE | C7: EXERCISE 6-7 DAYS/WEEK | D7: 1.725
B8: EXTRA ACTIVE | C8: EXERCISE 6-7 DAYS/WEEK + PHYSICAL JOB/2X TRAINING | D8: 1.9
